Cogmind - Beta 14 @@@ ROGUE MODE // 2024.08.24 @ 01:05:11 Player: Darby Result: Destroyed by Enhanced Programmer with Enhanced Gamma Rifle Performance ------------- Evolutions (9) 4500 Regions Visited (39) 7800 Robots Destroyed (185) 925 Value Destroyed (6598) 6598 Prototype IDs (245) 4900 Alien Tech Used (4) 800 Bonus (13077) 13077 TOTAL SCORE: 38600 Bonus ------- Triggered Max Security 2000 High Alert Combat Kills 1011 Follower Combat Kills 1166 Entered Garrisons 800 Used RIF Installer 2500 Network Hubs Disabled 200 Aligned with FarCom 300 Met Data Miner 300 Used Data Conduit 3000 Pursued by Intercept 1000 Met Architect 300 Started Test 138-B 500 Cogmind --------- Core Integrity 0/1600 Matter 274/300 Energy 99/100 System Corruption 15% Temperature Cool (0) Movement Core (50) Location -1/Access_0 Parts ------- > --- POWER (1) -------- (None) > --- PROPULSION (8) --- (None) > --- UTILITY (14) ----- Advanced Signal Interpreter Advanced Terrain Scan Processor Transport Network Coupler System Shield Relay Coupler [Grunt] (7) > --- WEAPON (2) ------- (None) > --- INVENTORY (5) ---- Cooled Linear Gravjet Quantum Rifle Quantum Rifle Advanced Remote Datajack Peak State ------------ > --- POWER ------------ Light Quantum Reactor > --- PROPULSION ------- Cooled VTOL Module Cooled Field Propulsion Drive Cooled Field Propulsion Drive Impulse Thruster Array Impulse Thruster Array Experimental Q-thruster > --- UTILITY ---------- Structural Scanner Advanced Signal Interpreter Long-range Terrain Scanner Advanced Terrain Scan Processor Transport Network Coupler Improved Hacking Suite System Shield Improved System Shield Advanced System Shield Relay Coupler [Grunt] Improved System Guard > --- WEAPON ----------- Quantum Rifle Kinetic Spear > --- INVENTORY -------- Quantum Reactor Improved Antigrav System Cooled Linear Gravjet Supercharged TR [Rating: 138] Favorites ----------- Power Light Nuclear Core Engine Light Angular Momentum Engine Power Core Light Nuclear Core Reactor Light Quantum Reactor Propulsion Cooled VTOL Module Treads Light Treads Leg Aluminum Leg Wheel Compact Wheel Hover Unit Gravmag System Flight Unit Cooled VTOL Module Utility Structural Scanner Device Structural Scanner Storage Medium Storage Unit Processor Advanced Terrain Scan Processor Hackware Relay Coupler [NC] Protection Improved Medium Armor Plating Weapon Particle Cannon Energy Gun Small Laser Energy Cannon Particle Cannon Ballistic Gun Heavy Battle Rifle Ballistic Cannon Gauss Cannon Launcher Improved Grenade Launcher Special Weapon Remote Datajack Impact Weapon Great Maul Slashing Weapon Katana Piercing Weapon Kinetic Spear Special Melee Weapon Datajack Build | -11 -10 -10 -10 -9 -8 -8 -8 -7 -7 -7 -7 -7 -7 -6 -6 -6 -6 -6 -6 -5 -5 -5 -5 -5 -5 -4 -4 -4 -4 -4 -4 -4 -3 -3 -2 -2 -1 -1 -1 ------- Run | Yrd Mat Min Exi Min Mat Gar Mat Fac Was Fac Gar Fac Gar Fac Was Fac Low Low Dat Pro Fac Was Fac Gar Fac Fac Was Fac Ext Cet Arc Hub Res Qua Res Tes Acc Com Ac0 Slots Evolved 18 | . . . . . 4 . . 2 . . . . . 2 . . . . . . 2 . . . . 2 . . . . . . 2 . 2 . 2 . . Power . | . . . . . . . . . . . . . . . . . . . . . . . . . . . . . . . . . . . . . . . . Propulsion 6 | . . . . . 2 . . 1 . . . . . . . . . . . . 1 . . . . . . . . . . . . . . . 2 . . Utility 12 | . . . . . 2 . . 1 . . . . . 2 . . . . . . 1 . . . . 2 . . . . . . 2 . 2 . . . . Weapon . | . . . . . . . . . . . . . . . . . . . . . . . . . . . . . . . . . . . . . . . . Parts Attached 348 | 9 44 8 2 3 19 25 12 21 1 2 14 38 4 21 . 4 2 . 3 1 30 1 6 3 7 16 1 3 7 . . 3 17 2 2 4 4 7 2 Power 32 | 1 3 . . 1 . 1 3 . . . . 6 1 2 . 1 . . . . 2 . . . . 2 1 . 3 . . . 1 . . 1 . 2 1 Engine 15 | 1 2 . . 1 . . 2 . . . . 2 . 2 . 1 . . . . 2 . . . . 2 . . . . . . . . . . . . . Core 9 | . 1 . . . . 1 1 . . . . 4 1 . . . . . . . . . . . . . . . 1 . . . . . . . . . . Reactor 8 | . . . . . . . . . . . . . . . . . . . . . . . . . . . 1 . 2 . . . 1 . . 1 . 2 1 Propulsion 75 | 4 13 4 . . 1 . 5 7 . . 2 10 . 3 . 1 . . . . 4 . 1 . . 6 . . 1 . . 2 4 . . 2 3 2 . Treads 8 | . 6 2 . . . . . . . . . . . . . . . . . . . . . . . . . . . . . . . . . . . . . Leg 2 | 1 1 . . . . . . . . . . . . . . . . . . . . . . . . . . . . . . . . . . . . . . Wheel 13 | 3 6 2 . . . . . . . . . . . . . . . . . . . . . . . . . . . . . . 2 . . . . . . Hover 7 | . . . . . . . . 1 . . . 3 . . . . . . . . . . . . . . . . . . . 2 . . . . 1 . . Flight 45 | . . . . . 1 . 5 6 . . 2 7 . 3 . 1 . . . . 4 . 1 . . 6 . . 1 . . . 2 . . 2 2 2 . Utility 87 | 2 9 2 . 1 7 1 3 5 1 . 6 6 1 7 . . 2 . 3 1 10 1 4 1 1 3 . 2 1 . . 1 4 . 1 . . 1 . Device 43 | 1 6 1 . 1 3 1 1 1 . . . 4 . 3 . . 2 . . 1 7 1 4 . . 1 . 2 . . . . 2 . 1 . . . . Storage 5 | 1 1 . . . 1 . . 1 . . . . . . . . . . . . . . . . . 1 . . . . . . . . . . . . . Processor 9 | . . . . . . . . 1 . . . 1 . 2 . . . . 2 . 1 . . . . 1 . . 1 . . . . . . . . . . Hackware 25 | . . . . . 2 . 1 2 1 . 6 1 1 2 . . . . 1 . 2 . . 1 1 . . . . . . 1 2 . . . . 1 . Protection 5 | . 2 1 . . 1 . 1 . . . . . . . . . . . . . . . . . . . . . . . . . . . . . . . . Artifact . | . . . . . . . . . . . . . . . . . . . . . . . . . . . . . . . . . . . . . . . . Weapon 154 | 2 19 2 2 1 11 23 1 9 . 2 6 16 2 9 . 2 . . . . 14 . 1 2 6 5 . 1 2 . . . 8 2 1 1 1 2 1 Energy Gun 8 | 1 1 . . . . . . . . . . . . . . . . . . . 5 . . . . . . . . . . . . . . . . 1 . Energy Cannon 28 | . 8 1 1 . 4 12 . 2 . . . . . . . . . . . . . . . . . . . . . . . . . . . . . . . Ballistic Gun 8 | 1 3 1 . . 2 1 . . . . . . . . . . . . . . . . . . . . . . . . . . . . . . . . . Ballistic Cannon 13 | . . . . . . . . . . 1 3 4 . 3 . 1 . . . . 1 . . . . . . . . . . . . . . . . . . Launcher 13 | . 2 . . . 2 8 1 . . . . . . . . . . . . . . . . . . . . . . . . . . . . . . . . Special Weapon 25 | . 5 . . . 1 . . 2 . . . . 1 3 . . . . . . 2 . 1 2 3 2 . . . . . . . 1 . . . 1 1 Impact Weapon 17 | . . . . . . . . 5 . 1 3 8 . . . . . . . . . . . . . . . . . . . . . . . . . . . Slashing Weapon 33 | . . . . . 1 1 . . . . . 3 1 3 . 1 . . . . 6 . . . 3 3 . 1 1 . . . 7 . 1 1 . . . Piercing Weapon 4 | . . . . . . . . . . . . 1 . . . . . . . . . . . . . . . . . . . . 1 1 . . 1 . . Special Melee Weapon 5 | . . . 1 1 1 1 . . . . . . . . . . . . . . . . . . . . . . 1 . . . . . . . . . . Unidentified Prototypes 8 | . . . . . . . 1 1 . . . 1 . . . . . . 1 . . . . . . . . . . . . . . 2 1 . . 1 . Corrupted Parts 1 | . . . . 1 . . . . . . . . . . . . . . . . . . . . . . . . . . . . . . . . . . . System Corruption 6 | . . . . 6 . . . . . . . . . . . . . . . . . . . . . . . . . . . . . . . . . . . Parts Lost 47 | . 1 . . . . 1 1 . . . 5 . 1 . . . . . . . . . 7 1 . 1 . 1 1 1 . 7 . 3 . 2 . . 14 Power 5 | . . . . . . . . . . . 1 . . . . . . . . . . . . . . 1 . . . . . . . 1 . . . . 2 Propulsion 24 | . . . . . . . . . . . 3 . . . . . . . . . . . 5 1 . . . . 1 1 . 6 . . . 1 . . 6 Utility 11 | . . . . . . . 1 . . . . . 1 . . . . . . . . . 2 . . . . 1 . . . . . 1 . . . . 5 Weapon 7 | . 1 . . . . 1 . . . . 1 . . . . . . . . . . . . . . . . . . . . 1 . 1 . 1 . . 1 Highest Loss Streak 13 | . 1 . . . . 1 1 . . . 4 . 1 . . . . . . . . . 7 8 . 1 . 1 1 1 . 6 . 2 . 2 . . 13 To Critical Strikes . | . . . . . . . . . . . . . . . . . . . . . . . . . . . . . . . . . . . . . . . . Average Slot Usage (%) 85 | . 99 100 100 100 71 69 70 94 100 100 91 83 91 94 100 100 93 93 93 93 99 100 95 28 40 63 73 75 76 77 73 76 61 70 59 64 63 75 59 Engine 3 | . 3 . . 12 9 7 1 . . . . 3 . 5 6 6 6 6 6 6 5 5 4 . . 2 . . . . . . . . . . . . . Core 3 | . 10 14 14 1 . 1 7 7 7 7 3 1 7 . . . . . . . . . . . . . . . . . . . . . . . . . . Treads 4 | . 23 19 . . . . . . . . . . . . . . . . . . . . . . . . . . . . . . . . . . . . . Wheel 2 | . 4 8 28 28 . . . . . . . . . . . . . . . . . . . . . . . . . . . . 4 . . . . . . Flight 18 | . . . . . 9 9 9 36 38 38 36 31 38 33 33 33 33 33 33 33 35 35 33 5 5 26 31 31 28 25 21 16 5 9 8 12 14 23 16 Device 8 | . 13 3 14 14 11 6 2 4 7 7 2 2 7 6 6 6 20 20 7 13 11 11 10 . . 1 . 1 5 5 5 5 6 9 12 12 8 8 5 Storage 7 | . 14 14 14 14 9 9 9 7 7 7 7 7 7 6 6 6 6 6 6 6 5 5 4 . . . . . . . . . . . . . . . . Processor 6 | . . . . . . . . 2 . . . 4 7 14 20 20 13 13 19 13 11 11 11 11 11 11 15 15 16 21 21 21 19 19 17 17 16 16 16 Hackware 11 | . . . . . 10 9 17 19 23 23 25 22 14 13 13 13 6 6 11 13 16 17 16 9 16 15 15 11 10 10 10 14 19 23 17 17 16 19 16 Protection 1 | . . 10 . . 4 9 5 . . . . . . . . . . . . . . . . . . . . . . . . . . . . . . . . Energy Cannon 6 | . 20 22 14 15 11 13 9 2 . . . . . . . . . . . . . . . . . . . . . . . . . . . . . . . Ballistic Gun 1 | . 4 4 . . 4 1 3 . . . . . . . . . . . . . . . . . . . . . . . . . . . . . . . . Special Weapon 2 | . 2 . . . . . . 5 7 7 6 . . 4 6 6 . . . . 4 5 4 . 1 . 5 5 2 . . . . . . . . . . Slashing Weapon 1 | . . . . . . . . . . . . 3 6 5 6 6 6 6 6 6 3 5 4 . 3 3 . 4 5 5 5 4 2 . 3 3 . . . Peak Build Rating 138 | 8 14 14 16 17 53 60 57 56 43 43 55 53 47 60 59 60 62 58 67 63 90 85 96 30 34 60 67 75 73 70 65 76 82 86 97 124 121 138 136 Average Rating 49 | 6 12 13 13 14 50 53 55 39 41 42 47 43 43 54 58 59 58 58 65 63 80 83 82 24 29 51 65 70 69 69 65 67 62 83 96 105 94 129 93 On Entrance 53 | . 8 13 13 16 17 47 60 56 38 42 43 40 46 43 59 59 59 58 58 67 63 83 85 27 24 28 58 67 70 70 65 65 33 82 73 97 75 121 130 Naked Turns . | . . . . . . . . . . . . . . . . . . . . . . . . . . . . . . . . . . . . . . . . Heaviest Build 56 | 13 56 54 54 54 50 47 45 23 23 23 25 23 21 25 25 25 25 25 25 24 31 28 28 . 4 24 19 22 24 18 18 18 21 21 19 33 25 25 25 Greatest Support 65 | 26 40 40 26 26 50 50 50 25 25 25 25 35 35 25 25 25 35 25 35 25 31 44 44 3 5 24 24 24 34 30 24 23 21 23 21 34 55 65 65 Greatest Overweight (x) 7 | . 2 1 2 2 . . 7 . . . 5 1 . . . . . . . . . . . . . . . . . 1 1 4 1 . . 1 1 . . Average Overweight (x) . | . 1 1 1 1 . . . . . . . . . . . . . . . . . . . . . . . . . . . . . . . . . . . Largest Inventory Capacity 20 | 8 20 20 20 20 20 15 15 15 10 10 10 10 10 10 10 10 10 10 10 10 10 10 10 5 5 15 5 5 5 5 5 5 5 5 5 5 5 5 5 Average Capacity 12 | 7 19 20 20 20 15 15 15 10 10 10 10 10 10 10 10 10 10 10 10 10 10 10 9 5 5 5 5 5 5 5 5 5 5 5 5 5 5 5 5 Most Carried 20 | 8 20 20 20 20 20 15 15 15 10 10 10 10 10 10 10 10 10 10 10 10 10 10 10 5 3 5 5 5 5 5 5 5 5 5 5 4 1 5 5 Average Carried 11 | 5 18 20 19 19 14 14 14 9 9 9 9 9 9 9 9 9 9 10 10 9 9 10 9 4 2 4 5 4 5 5 5 4 4 4 1 1 1 4 3 Final Capacity 20 | 8 20 20 20 20 15 15 15 10 10 10 10 10 10 10 10 10 10 10 10 10 10 10 10 5 5 5 5 5 5 5 5 5 5 5 5 5 5 5 5 Final Carried 20 | 8 20 20 20 20 15 15 15 9 10 10 9 10 9 10 10 10 10 10 10 10 10 10 10 4 3 5 5 5 5 5 5 5 4 4 1 2 1 5 5 Class Distribution -------------------- 38% | Mutant 13% | Bothacker-Scout 12% | Hacker-Scout 10% | Bothacker-Sprinter 8% | Bothacker-Mutant 5% | Scout 3% | Hacker-Mutant Dominant Class ---------------- Mutant | -10/Materials Mutant | -10/Mines Mutant | -10/Exiles Mutant | -9/Mines Mutant | -8/Materials Mutant | -8/Garrison Bothacker-Mutant | -8/Materials Bothacker-Sprinter | -7/Factory Bothacker-Sprinter | -7/Waste Bothacker-Sprinter | -7/Factory Bothacker-Sprinter | -7/Garrison Bothacker-Scout | -7/Factory Bothacker-Scout | -7/Garrison Bothacker-Scout | -6/Factory Bothacker-Scout | -6/Waste Bothacker-Scout | -6/Factory Bothacker-Scout | -6/Lower Caves Bothacker-Scout | -6/Lower Caves Bothacker-Sprinter | -6/Data Miner Bothacker-Scout | -5/Proximity Caves Bothacker-Scout | -5/Factory Hacker-Assassin | -5/Waste Hacker-Scout | -5/Factory Mutant | -5/Garrison Mutant | -5/Factory Assassin | -4/Factory Assassin | -4/Waste Sprinter | -4/Factory Scout | -4/Extension Scout | -4/Cetus Scout | -4/Archives Hacker-Assassin | -4/Hub_04(d) Hacker-Scout | -3/Research Hacker-Scout | -3/Quarantine Hacker-Assassin | -2/Research Hacker-Scout | -2/Testing Hacker-Mutant | -1/Access Hacker-Scout | -1/Command Hacker-Mutant | -1/Access_0 Resources | -11 -10 -10 -10 -9 -8 -8 -8 -7 -7 -7 -7 -7 -7 -6 -6 -6 -6 -6 -6 -5 -5 -5 -5 -5 -5 -4 -4 -4 -4 -4 -4 -4 -3 -3 -2 -2 -1 -1 -1 ----------- Run | Yrd Mat Min Exi Min Mat Gar Mat Fac Was Fac Gar Fac Gar Fac Was Fac Low Low Dat Pro Fac Was Fac Gar Fac Fac Was Fac Ext Cet Arc Hub Res Qua Res Tes Acc Com Ac0 Matter Collected 5126 | 309 609 89 . 94 292 638 228 294 . 76 83 618 103 303 . 52 46 . 29 11 236 . 65 69 . 135 . 17 343 45 . . 120 . . . . 222 . Remotely . | . . . . . . . . . . . . . . . . . . . . . . . . . . . . . . . . . . . . . . . . Salvage Created 6949 | 218 1487 89 . 107 445 800 826 156 . 45 . 813 23 656 . 111 27 . 29 161 236 . 261 . . 135 . 17 67 . 38 . 164 . . . . 38 . Parts 324 | 17 87 4 . 5 23 48 40 9 . . . 29 1 13 . 3 3 . 1 . 11 . 10 . . 7 . 2 3 . 1 . 3 . . . . 4 . Haulers Intercepted 15 | . 2 . . . 2 . 1 1 . 1 . . . 5 . 1 . . . . . . 1 . . 1 . . . . . . . . . . . . . Recyclers Shooed 5 | 1 . . . . . . 1 . . . . 1 . 1 . . . . . . . . 1 . . . . . . . . . . . . . . . . Parts Field Recycled . | . . . . . . . . . . . . . . . . . . . . . . . . . . . . . . . . . . . . . . . . Retrieved Matter . | . . . . . . . . . . . . . . . . . . . . . . . . . . . . . . . . . . . . . . . . Parts Self-Destructed 4 | . . . . . . . . . . . . . . . . . 3 1 . . . . . . . . . . . . . . . . . . . . . Prevented . | . . . . . . . . . . . . . . . . . . . . . . . . . . . . . . . . . . . . . . . . Kills | -11 -10 -10 -10 -9 -8 -8 -8 -7 -7 -7 -7 -7 -7 -6 -6 -6 -6 -6 -6 -5 -5 -5 -5 -5 -5 -4 -4 -4 -4 -4 -4 -4 -3 -3 -2 -2 -1 -1 -1 ------- Run | Yrd Mat Min Exi Min Mat Gar Mat Fac Was Fac Gar Fac Gar Fac Was Fac Low Low Dat Pro Fac Was Fac Gar Fac Fac Was Fac Ext Cet Arc Hub Res Qua Res Tes Acc Com Ac0 Combat Hostiles Destroyed 83 | . 21 2 . 2 6 28 18 . . . . 3 1 2 . . . . . . . . . . . . . . . . . . . . . . . . . Melee 3 | . . . . . . . . . . . . . 1 2 . . . . . . . . . . . . . . . . . . . . . . . . . Guns 13 | . 7 1 . . . 3 2 . . . . . . . . . . . . . . . . . . . . . . . . . . . . . . . . Cannons 29 | . 10 1 . 2 2 10 3 . . . . 1 . . . . . . . . . . . . . . . . . . . . . . . . . . . AOE 38 | . 4 . . . 4 15 13 . . . . 2 . . . . . . . . . . . . . . . . . . . . . . . . . . . Classes Destroyed 16 | 3 6 . . 1 3 1 1 . . . . . . . . . 1 . . . . . . . . . . . . . . . . . . . . . . Worker 24 | 2 10 . . 1 . . 1 . . . . 7 . . . . . . . . 1 . . . . 1 . . . . . . 1 . . . . . . Builder 18 | . 5 . . . . . 1 3 . . . 3 . . . . . . . . 2 . 1 . . 1 . 1 1 . . . . . . . . . . Tunneler 10 | 5 1 . . . . . 1 . . . . 1 . . . . . . . . 1 . . . . 1 . . . . . . . . . . . . . Hauler 15 | . 2 . . . 2 . 1 1 . 1 . . . 5 . 1 . . . . . . 1 . . 1 . . . . . . . . . . . . . Recycler 17 | 1 3 . . . . . 3 1 . . . 6 . . . . . . . . 1 . 1 . . . . . . . . . 1 . . . . . . Minesweeper 1 | . . . . . . . . . . . . . . . . . 1 . . . . . . . . . . . . . . . . . . . . . . Mechanic 1 | . . . . . 1 . . . . . . . . . . . . . . . . . . . . . . . . . . . . . . . . . . Operator 5 | . 3 . . . . . . . . . . . . . . . . . . . . . . . . . . . . . 1 . . . . . . 1 . Watcher 10 | . 3 . . . 3 . 2 . . . . 1 . . . . . . . . . . . . . . . . 1 . . . . . . . . . . Swarmer 14 | . 3 . . . . 7 3 . . . . . 1 . . . . . . . . . . . . . . . . . . . . . . . . . . Grunt 49 | . 18 2 . 1 4 11 10 . . . . 1 . 2 . . . . . . . . . . . . . . . . . . . . . . . . . Duelist 6 | . . . . 1 . 4 . . . . . 1 . . . . . . . . . . . . . . . . . . . . . . . . . . . Protector 2 | . . . . . . . 2 . . . . . . . . . . . . . . . . . . . . . . . . . . . . . . . . Sentry 7 | . . . . . 1 3 3 . . . . . . . . . . . . . . . . . . . . . . . . . . . . . . . . Hunter 1 | . . . . . 1 . . . . . . . . . . . . . . . . . . . . . . . . . . . . . . . . . . Programmer 4 | . . . . . . 3 . . . . . 1 . . . . . . . . . . . . . . . . . . . . . . . . . . . Packrat 2 | . . . . . . . . . . . . . . . . . . . . 2 . . . . . . . . . . . . . . . . . . . Best Kill Streak 9 | 4 9 1 . 2 5 7 8 2 . 1 . 6 1 2 . 1 1 . 1 . 2 . 1 . . 1 . 1 1 . 1 . 2 . . . . 1 . Combat Bots Only 8 | . 7 1 . 2 4 7 8 . . . . 2 1 2 . . . . . . . . . . . . . . . . . . . . . . . . . Max Kills in Single Turn 4 | 1 3 1 . 1 2 3 4 1 . 1 . 2 1 1 . 1 1 . 1 1 1 . 1 . . 1 . 1 1 . 1 . 1 . . . . 1 . Gunslinging . | . . . . . . . . . . . . . . . . . . . . . . . . . . . . . . . . . . . . . . . . Exploded 4 | . 3 . . . 2 3 4 . . . . 2 . . . . . . . . . . . . . . . . . . . . . . . . . . . Melee 1 | . . . . . . . . . . . . . 1 1 . . . . . . . . . . . . . . . . . . . . . . . . . Uniques/NPCs Destroyed 1 | . . . . . . . . . . . . . . . . . . . 1 . . . . . . . . . . . . . . . . . . . . Data Miner (-6/Data Miner) Combat | -11 -10 -10 -10 -9 -8 -8 -8 -7 -7 -7 -7 -7 -7 -6 -6 -6 -6 -6 -6 -5 -5 -5 -5 -5 -5 -4 -4 -4 -4 -4 -4 -4 -3 -3 -2 -2 -1 -1 -1 -------- Run | Yrd Mat Min Exi Min Mat Gar Mat Fac Was Fac Gar Fac Gar Fac Was Fac Low Low Dat Pro Fac Was Fac Gar Fac Fac Was Fac Ext Cet Arc Hub Res Qua Res Tes Acc Com Ac0 Hostile Shots Fired 831 | . 58 14 . 4 47 64 65 4 . 13 116 2 12 13 . 1 1 . . . . . 75 21 . 2 . 2 10 4 4 31 6 34 27 8 7 45 141 Missed 378 | . 14 3 . 2 25 25 38 2 . 6 67 1 4 10 . 1 1 . . . . . 14 8 . 1 . 1 2 2 2 10 3 20 12 1 6 31 66 Damage Taken 9229 | . 530 167 . 68 290 742 493 31 . 80 503 16 117 36 . . . . . . . . 1435 302 . 16 . 23 251 70 53 537 63 316 422 196 20 147 2305 Core 3554 | . 105 12 . 44 32 111 34 . . 43 193 . 33 . . . . . . . . . 686 278 . . . . . 55 . 352 20 67 48 . 20 49 1372 Absorbed by Shields 28 | . . . . . . 4 . . . . . . . . . . . . . . . . . . . . . . 10 14 . . . . . . . . . Redirected to Shielding 26 | . 10 16 . . . . . . . . . . . . . . . . . . . . . . . . . . . . . . . . . . . . . Regen/Repaired (Parts) 211 | . 22 . . . . . 31 . . 23 . . . 35 . . . . . . 7 . 11 . . . . . . . . . . . 6 76 . . . Core Remaining (%) 67 | 100 . . . 35 . . 67 . . . . . 61 . . . . . . 100 . . . . 3 . . . . . . 64 . 83 . 96 . . . Volleys Fired 516 | 19 149 15 . 9 74 88 47 9 . 11 23 6 8 17 . 1 . . . . 12 . . 2 5 3 . . 4 . . . . . . . . 8 6 Largest 2 | 2 2 2 . 2 2 2 2 1 . 1 1 1 1 1 . 1 . . . . 1 . . 1 1 1 . . 1 . . . . . . . . 1 1 Hottest 225 | 60 136 136 . 136 148 148 113 68 . 48 48 48 5 48 . 48 . . . . 225 . . 7 7 7 . . 7 . . . . . . . . 94 10 Shots Fired 776 | 36 278 22 . 12 106 152 55 9 . 11 23 6 8 17 . 1 . . . . 12 . . 2 5 3 . . 4 . . . . . . . . 8 6 Gun 184 | 36 88 7 . . 20 9 8 . . . . . . . . . . . . . 8 . . . . . . . . . . . . . . . . 8 . Cannon 456 | . 167 15 . 12 75 119 36 5 . 1 11 6 . 6 . 1 . . . . 2 . . . . . . . . . . . . . . . . . . Launcher 43 | . 4 . . . 4 24 11 . . . . . . . . . . . . . . . . . . . . . . . . . . . . . . . . Special 93 | . 19 . . . 7 . . 4 . 10 12 . 8 11 . . . . . . 2 . . 2 5 3 . . 4 . . . . . . . . . 6 Kinetic 175 | 19 85 7 . . 20 9 8 . . 1 11 6 . 6 . 1 . . . . 2 . . . . . . . . . . . . . . . . . . Thermal 491 | 17 189 15 . 12 82 119 36 5 . . . . . . . . . . . . 8 . . . . . . . . . . . . . . . . 8 . Explosive 43 | . 4 . . . 4 24 11 . . . . . . . . . . . . . . . . . . . . . . . . . . . . . . . . Electromagnetic . | . . . . . . . . . . . . . . . . . . . . . . . . . . . . . . . . . . . . . . . . Robot Hit Streak 14 | 14 13 3 . 4 7 10 14 6 . 4 6 1 2 5 . . . . . . 3 . . 5 8 4 . . 5 . . . . . . . . . 2 Robot Miss Streak 5 | 1 4 4 . 1 5 4 3 1 . 3 1 1 4 1 . . . . . . . . . . 1 . . . 1 . . . . . . . . . 2 Penetration Max . | . . . . . . . . . . . . . . . . . . . . . . . . . . . . . . . . . . . . . . . . Secondary Targets 1 | . 1 . . . . . . . . . . . . . . . . . . . . . . . . . . . . . . . . . . . . . . Max Gunslinging Chain 1 | . 1 . . . . . . . . . . . . . . . . . . . . . . . . . . . . . . . . . . . . . . Shots Hit Robots 438 | 25 122 11 19 4 30 61 17 10 . 7 7 21 4 31 . 1 4 . 1 4 9 . 10 2 4 16 . 2 6 . 1 1 3 1 . . . 1 3 Core Hits 229 | 10 59 4 . 4 15 49 44 3 . . . 12 1 10 . 1 1 . 1 2 1 . 5 . . 3 . . 2 . . . . . . . . 1 1 Critical Kills 2 | . 1 . . . 1 . . . . . . . . . . . . . . . . . . . . . . . . . . . . . . . . . . Critical Parts Destroyed 1 | . . . . . . . . . . . . 1 . . . . . . . . . . . . . . . . . . . . . . . . . . . Critical Strikes 11 | . 1 . . . 1 . . . . . . 3 . 2 . . 1 . . . . . 1 . . 1 . . . . . 1 . . . . . . . Meltdown 1 | . . . . . 1 . . . . . . . . . . . . . . . . . . . . . . . . . . . . . . . . . . Destroy 1 | . 1 . . . . . . . . . . . . . . . . . . . . . . . . . . . . . . . . . . . . . . Blast 1 | . . . . . . . . . . . . 1 . . . . . . . . . . . . . . . . . . . . . . . . . . . Smash 1 | . . . . . . . . . . . . 1 . . . . . . . . . . . . . . . . . . . . . . . . . . . Sever 6 | . . . . . . . . . . . . . . 2 . . 1 . . . . . 1 . . 1 . . . . . 1 . . . . . . . Impale 1 | . . . . . . . . . . . . 1 . . . . . . . . . . . . . . . . . . . . . . . . . . . Melee Attacks 425 | . . . 19 . 1 5 . 11 . 15 22 49 19 52 . 32 6 . 21 7 39 . 24 . 8 17 . 13 5 4 1 3 13 11 1 7 4 15 1 Impact 61 | . . . . . . . . 11 . 15 22 13 . . . . . . . . . . . . . . . . . . . . . . . . . . . Slashing 293 | . . . . . 1 2 . . . . . 21 19 52 . 32 6 . 21 7 39 . 24 . 8 17 . 13 4 4 1 3 11 . 1 7 . . . Piercing 48 | . . . . . . . . . . . . 15 . . . . . . . . . . . . . . . . . . . . 2 11 . . 4 15 1 Sneak Attacks 83 | . . . 18 . . 3 . 3 . 1 . 19 1 10 . 1 2 . 1 2 6 . 3 . . 5 . 2 2 . 1 . 3 . . . . . . Combat Hostiles 6 | . . . . . . . . . . . . . 1 4 . . . . . . . . . . . . . . 1 . . . . . . . . . . Follow-up Attacks . | . . . . . . . . . . . . . . . . . . . . . . . . . . . . . . . . . . . . . . . . Damage Inflicted 16461 | 246 2353 173 . 82 1178 2583 2695 303 . 146 . 2199 79 1153 . 77 235 . 81 250 481 . 495 . . 700 . 163 162 . 146 46 281 44 . . . 92 18 Guns 1202 | 246 557 29 . . 178 103 89 . . . . . . . . . . . . . . . . . . . . . . . . . . . . . . . . Cannons 3754 | . 1497 144 . 82 526 1186 201 83 . . . 35 . . . . . . . . . . . . . . . . . . . . . . . . . . . Explosions 5014 | . 299 . . . 474 1294 2405 . . . . 502 . . . . . . . . . . . . . . . . . . . . . . . . . 40 . Melee 6470 | . . . . . . . . 220 . 146 . 1662 79 1153 . 77 235 . 81 250 481 . 495 . . 700 . 163 162 . 146 46 281 41 . . . 52 . Ramming 21 | . . . . . . . . . . . . . . . . . . . . . . . . . . . . . . . . . . 3 . . . . 18 Kinetic 1072 | 91 547 29 . . 178 103 89 . . . . 35 . . . . . . . . . . . . . . . . . . . . . . . . . . . Thermal 4392 | 155 1507 144 . 82 526 1186 596 83 . . . 113 . . . . . . . . . . . . . . . . . . . . . . . . . . . Explosive 4414 | . 299 . . . 474 1294 2010 . . . . 297 . . . . . . . . . . . . . . . . . . . . . . . . . 40 . Electromagnetic 92 | . . . . . . . . . . . . 92 . . . . . . . . . . . . . . . . . . . . . . . . . . . Impact 1019 | . . . . . . . . 220 . 146 . 653 . . . . . . . . . . . . . . . . . . . . . . . . . . . Slashing 4777 | . . . . . . . . . . . . 508 79 1153 . 77 235 . 81 250 481 . 495 . . 700 . 163 162 . 146 46 201 . . . . . . Piercing 674 | . . . . . . . . . . . . 501 . . . . . . . . . . . . . . . . . . . . 80 41 . . . 52 . Highest Corruption 14 | . . . . 6 . 3 3 . . 1 2 2 2 . . . . . . . . 9 12 12 12 . . 4 4 . . . . . . . . . 14 Average Corruption 4 | . . . . 6 . 2 3 . . 1 1 2 2 . . . . . . . . 9 9 12 12 . . 4 4 . . . . . . . . . 4 Corruption Purged . | . . . . . . . . . . . . . . . . . . . . . . . . . . . . . . . . . . . . . . . . Corruption Blocked . | . . . . . . . . . . . . . . . . . . . . . . . . . . . . . . . . . . . . . . . . Effects 115 | . . . . 1 . 4 17 . . 3 1 22 4 . . . . . . . . . 29 3 14 . . 2 15 . . . . . . . . . . Message Errors 28 | . . . . . . 2 6 . . 1 . 3 2 . . . . . . . . . 8 . 4 . . 1 1 . . . . . . . . . . Matter Fused 27 | . . . . . . 2 3 . . 1 . 10 . . . . . . . . . . 6 . . . . . 5 . . . . . . . . . . Heat Flow Errors 9 | . . . . . . . 1 . . 1 . . . . . . . . . . . . 1 . 3 . . 1 2 . . . . . . . . . . Energy Discharges 20 | . . . . . . . 6 . . . . 3 . . . . . . . . . . 4 1 4 . . . 2 . . . . . . . . . . Parts Rejected 3 | . . . . . . . . . . . . . . . . . . . . . . . 2 . . . . . 1 . . . . . . . . . . Parts Fused 2 | . . . . . . . . . . . . 1 . . . . . . . . . . 1 . . . . . . . . . . . . . . . . Data Loss (minor) 12 | . . . . . . . . . . . . 3 2 . . . . . . . . . 3 . 1 . . . 3 . . . . . . . . . . Data Loss (major) 10 | . . . . 1 . . 1 . . . 1 2 . . . . . . . . . . 2 . 2 . . . 1 . . . . . . . . . . Alerts 2 | . . . . . . . . . . . . . . . . . . . . . . . 1 1 . . . . . . . . . . . . . . . Misdirections 2 | . . . . . . . . . . . . . . . . . . . . . . . 1 1 . . . . . . . . . . . . . . . Overload Shots 8 | . . . . . . . . . . . . . . . . . . . . . 8 . . . . . . . . . . . . . . . . . . Effects 1 | . . . . . . . . . . . . . . . . . . . . . 1 . . . . . . . . . . . . . . . . . . Short Circuit 1 | . . . . . . . . . . . . . . . . . . . . . 1 . . . . . . . . . . . . . . . . . . Overflow Damage 2258 | . 40 . . . 25 77 226 74 . 16 . 817 . 126 . . 78 . . 28 238 . 22 . . 121 . 93 . . 101 . 176 . . . . . . Projectiles 94 | . 40 . . . 14 40 . . . . . . . . . . . . . . . . . . . . . . . . . . . . . . . . . Explosions 352 | . . . . . 11 37 226 . . . . 78 . . . . . . . . . . . . . . . . . . . . . . . . . . . Melee 1812 | . . . . . . . . 74 . 16 . 739 . 126 . . 78 . . 28 238 . 22 . . 121 . 93 . . 101 . 176 . . . . . . Knockbacks 3 | . . . . . . . . 1 . . . 1 . . . . . . . . . . . . . . . . . . . . . . . . . . 1 Impact 3 | . . . . . . . . 1 . . . 1 . . . . . . . . . . . . . . . . . . . . . . . . . . 1 Kinetic . | . . . . . . . . . . . . . . . . . . . . . . . . . . . . . . . . . . . . . . . . Secondary . | . . . . . . . . . . . . . . . . . . . . . . . . . . . . . . . . . . . . . . . . Self-Inflicted Damage 160 | . . . . . . 94 56 . . . . . . . . . . . . . . . . . . . . . . . . . . 1 . . . . 9 Shots 5 | . . . . . . 4 1 . . . . . . . . . . . . . . . . . . . . . . . . . . . . . . . . Rammed 2 | . . . . . . . . . . . . . . . . . . . . . . . . . . . . . . . . . . 1 . . . . 1 Targets Rammed 2 | . . . . . . . . . . . . . . . . . . . . . . . . . . . . . . . . . . 1 . . . . 1 Kicked . | . . . . . . . . . . . . . . . . . . . . . . . . . . . . . . . . . . . . . . . . Crushed . | . . . . . . . . . . . . . . . . . . . . . . . . . . . . . . . . . . . . . . . . Highest Temperature 402 | 40 373 342 . 255 332 402 264 45 1 275 24 173 158 6 . . 15 . 210 . 217 261 318 . 192 42 110 273 383 367 323 100 . . . . 2 347 32 Average Temperature 87 | 26 87 174 . 81 75 124 60 4 1 26 5 71 76 3 . . 15 . 210 . 96 139 175 . 74 18 47 89 119 82 229 32 . . . . 2 95 14 Received Heat Transfer 1639 | . 318 90 . 12 144 294 243 . . 12 156 . . 15 . . . . . . . . . 57 . . . 9 33 9 9 . . 27 9 36 . 58 108 Effects 25 | . 2 5 . . 1 12 1 . . . . . . . . . . . . . . . 2 . . . . . 2 . . . . . . . . . . Shutdowns 2 | . . . . . . . . . . . . . . . . . . . . . . . 1 . . . . . 1 . . . . . . . . . . Energy Bleed 9 | . 1 3 . . . 3 1 . . . . . . . . . . . . . . . . . . . . . 1 . . . . . . . . . . Interference 10 | . 1 . . . 1 8 . . . . . . . . . . . . . . . . . . . . . . . . . . . . . . . . . Matter Decay 1 | . . 1 . . . . . . . . . . . . . . . . . . . . . . . . . . . . . . . . . . . . . Damage (minor) 3 | . . 1 . . . 1 . . . . . . . . . . . . . . . . 1 . . . . . . . . . . . . . . . . Siege Activations . | . . . . . . . . . . . . . . . . . . . . . . . . . . . . . . . . . . . . . . . . Robots Corrupted 5 | . . . . . . . . 2 . 1 . 2 . . . . . . . . . . . . . . . . . . . . . . . . . . . Combat Hostiles . | . . . . . . . . . . . . . . . . . . . . . . . . . . . . . . . . . . . . . . . . Parts Fried 10 | . . . . . . . . 4 . . . 6 . . . . . . . . . . . . . . . . . . . . . . . . . . . Impact Corruptions 19 | . . . . . . . . 4 . 1 . 14 . . . . . . . . . . . . . . . . . . . . . . . . . . . Robots Melted 1 | . . . . . 1 . . . . . . . . . . . . . . . . . . . . . . . . . . . . . . . . . . Combat Hostiles . | . . . . . . . . . . . . . . . . . . . . . . . . . . . . . . . . . . . . . . . . Parts Melted 6 | . 1 . . . . 4 . 1 . . . . . . . . . . . . . . . . . . . . . . . . . . . . . . . Heat Transferred 7553 | 350 2726 259 . 148 1022 2212 638 148 . . . 50 . . . . . . . . . . . . . . . . . . . . . . . . . . . Parts Sabotaged . | . . . . . . . . . . . . . . . . . . . . . . . . . . . . . . . . . . . . . . . . Parts Stolen . | . . . . . . . . . . . . . . . . . . . . . . . . . . . . . . . . . . . . . . . . Parts Stripped . | . . . . . . . . . . . . . . . . . . . . . . . . . . . . . . . . . . . . . . . . Power Chain Reactions . | . . . . . . . . . . . . . . . . . . . . . . . . . . . . . . . . . . . . . . . . Alert | -11 -10 -10 -10 -9 -8 -8 -8 -7 -7 -7 -7 -7 -7 -6 -6 -6 -6 -6 -6 -5 -5 -5 -5 -5 -5 -4 -4 -4 -4 -4 -4 -4 -3 -3 -2 -2 -1 -1 -1 ------- Run | Yrd Mat Min Exi Min Mat Gar Mat Fac Was Fac Gar Fac Gar Fac Was Fac Low Low Dat Pro Fac Was Fac Gar Fac Fac Was Fac Ext Cet Arc Hub Res Qua Res Tes Acc Com Ac0 Peak Influence 1778 | 40 724 347 . 188 279 1689 1704 847 272 266 468 623 430 410 120 372 . . . . 252 57 156 22 87 70 66 149 668 373 155 133 206 1778 1120 1714 1224 1228 . Initial 1100 | . 26 282 . . 13 118 822 774 242 16 48 240 401 224 105 84 . . . . . 42 39 3 7 42 21 46 68 373 90 53 66 115 1100 630 1100 783 . Average 443 | 13 376 319 . 110 106 983 1265 720 230 132 243 292 411 307 116 210 . . . . 108 49 64 5 33 51 34 110 427 277 101 82 145 1678 1096 1653 1125 1016 . Maximum Alert Level 5 | . 3 1 . . 1 5 5 3 1 1 2 2 2 2 . 1 . . . . 1 . . . . . . . 2 1 . . 1 5 4 5 4 4 . Low Security (%) 35 | 100 17 . . 100 84 1 . . 18 79 45 12 . . 100 51 . . . . 81 100 100 100 100 100 100 100 6 . 100 100 79 . . . . . . Level 1 26 | . 37 100 . . 15 3 . . 81 20 40 77 12 95 . 48 . . . . 18 . . . . . . . 21 100 . . 20 . . . . . . Level 2 15 | . 36 . . . . 22 . 46 . . 14 9 87 4 . . . . . . . . . . . . . . 72 . . . . . . . . . . Level 3 10 | . 7 . . . . 40 25 53 . . . . . . . . . . . . . . . . . . . . . . . . . . 44 . . 70 . Level 4 8 | . . . . . . 29 60 . . . . . . . . . . . . . . . . . . . . . . . . . . . 56 . 100 29 . Level 5 1 | . . . . . . 3 13 . . . . . . . . . . . . . . . . . . . . . . . . . . . . . . . . High Security . | . . . . . . . . . . . . . . . . . . . . . . . . . . . . . . . . . . . . . . . . Max Security 1 | . . . . . . . . . . . . . . . . . . . . . . . . . . . . . . . . . . 99 . 99 . . . Squads Dispatched 104 | . 7 . . . 4 . 10 6 . 7 . 10 . 10 . 9 . . . . 5 . 4 . 2 1 . . 3 . . 5 4 6 2 6 1 2 . Investigation 56 | . 4 . . . 3 . 4 3 . 4 . 8 . 8 . 8 . . . . 3 . 2 . . 1 . . 2 . . 5 1 . . . . . . Extermination 9 | . . . . . . . . 1 . 2 . 2 . . . . . . . . . . . . . . . . . . . . 1 . . . 1 2 . Reinforcement 21 | . 3 . . . 1 . 4 1 . 1 . . . 2 . 1 . . . . 1 . . . 2 . . . 1 . . . 2 . 2 . . . . Assault 15 | . . . . . . . 2 1 . . . . . . . . . . . . . . . . . . . . . . . . . 6 . 6 . . . Garrison . | . . . . . . . . . . . . . . . . . . . . . . . . . . . . . . . . . . . . . . . . Intercept 3 | . . . . . . . . . . . . . . . . . . . . . 1 . 2 . . . . . . . . . . . . . . . . Searches Triggered . | . . . . . . . . . . . . . . . . . . . . . . . . . . . . . . . . . . . . . . . . Construction Impeded 2 | . . . . . . . 1 . . . . . . . . . . . . . . . . . . . . . 1 . . . . . . . . . . Haulers Reinforced 3 | . . . . . . . . 1 . 1 . . . 1 . . . . . . . . . . . . . . . . . . . . . . . . . Active Scanning Responses . | . . . . . . . . . . . . . . . . . . . . . . . . . . . . . . . . . . . . . . . . Cargo Convoy Interrupts . | . . . . . . . . . . . . . . . . . . . . . . . . . . . . . . . . . . . . . . . . Stealth | -11 -10 -10 -10 -9 -8 -8 -8 -7 -7 -7 -7 -7 -7 -6 -6 -6 -6 -6 -6 -5 -5 -5 -5 -5 -5 -4 -4 -4 -4 -4 -4 -4 -3 -3 -2 -2 -1 -1 -1 --------- Run | Yrd Mat Min Exi Min Mat Gar Mat Fac Was Fac Gar Fac Gar Fac Was Fac Low Low Dat Pro Fac Was Fac Gar Fac Fac Was Fac Ext Cet Arc Hub Res Qua Res Tes Acc Com Ac0 Distress Signals 25 | . . 1 . . 3 1 4 . . . . . . 1 . . . . . . . . . . . . . 1 3 1 . 3 1 2 2 . . 2 . Communications Jammed 14 | . . . . . . . . . . . . . . 6 . . . . . . 1 . 1 . 5 . . . . . . . . 1 . . . . . Distress Signals 13 | . . . . . . . . . . . . . . 6 . . . . . . 1 . 1 . 5 . . . . . . . . . . . . . . Times Spotted 459 | . 35 3 . 2 19 37 36 6 10 7 30 14 4 14 3 10 4 1 3 . 12 5 5 18 4 1 3 2 21 5 4 20 9 22 13 20 6 28 23 Peak Tracking Total 18 | . 5 2 . 2 4 6 9 5 6 3 9 3 4 3 3 2 4 1 3 . 4 5 3 16 1 1 3 2 8 5 4 17 5 17 14 16 5 11 18 Tactical Retreats 57 | . 1 1 . . 1 9 8 . 1 2 5 3 . 1 . . . 1 . . 2 . . 1 . . . 1 2 . . 3 2 2 . 3 1 7 . Traps | -11 -10 -10 -10 -9 -8 -8 -8 -7 -7 -7 -7 -7 -7 -6 -6 -6 -6 -6 -6 -5 -5 -5 -5 -5 -5 -4 -4 -4 -4 -4 -4 -4 -3 -3 -2 -2 -1 -1 -1 ------- Run | Yrd Mat Min Exi Min Mat Gar Mat Fac Was Fac Gar Fac Gar Fac Was Fac Low Low Dat Pro Fac Was Fac Gar Fac Fac Was Fac Ext Cet Arc Hub Res Qua Res Tes Acc Com Ac0 Traps Triggered 24 | . 2 . . 1 . 6 1 2 . . . . 1 2 . 2 . . . . 1 . . . . 1 . 1 1 . . . 1 1 . . 1 . . Indirectly . | . . . . . . . . . . . . . . . . . . . . . . . . . . . . . . . . . . . . . . . . Trap Hack Attempts 33 | . . . . . 33 . . . . . . . . . . . . . . . . . . . . . . . . . . . . . . . . . . Triggered . | . . . . . . . . . . . . . . . . . . . . . . . . . . . . . . . . . . . . . . . . Disarmed 1 | . . . . . 1 . . . . . . . . . . . . . . . . . . . . . . . . . . . . . . . . . . Reprogrammed 3 | . . . . . 3 . . . . . . . . . . . . . . . . . . . . . . . . . . . . . . . . . . Reused 3 | . . . . . . 3 . . . . . . . . . . . . . . . . . . . . . . . . . . . . . . . . . Traps Extracted 3 | . . . . . 3 . . . . . . . . . . . . . . . . . . . . . . . . . . . . . . . . . . Installed 3 | . . . . . . 3 . . . . . . . . . . . . . . . . . . . . . . . . . . . . . . . . . Triggered 5 | . . . . . . 3 . . . . . . . . . . . 2 . . . . . . . . . . . . . . . . . . . . . Most Traps Carried 3 | . . . . . . 3 . . . . . . . . . . . . . . . . . . . . . . . . . . . . . . . . . Objects Rigged 16 | . . . . . 3 . 5 . . . . 8 . . . . . . . . . . . . . . . . . . . . . . . . . . . Exploded 8 | . . . . . 1 . 4 . . . . 3 . . . . . . . . . . . . . . . . . . . . . . . . . . . Machines | -11 -10 -10 -10 -9 -8 -8 -8 -7 -7 -7 -7 -7 -7 -6 -6 -6 -6 -6 -6 -5 -5 -5 -5 -5 -5 -4 -4 -4 -4 -4 -4 -4 -3 -3 -2 -2 -1 -1 -1 ---------- Run | Yrd Mat Min Exi Min Mat Gar Mat Fac Was Fac Gar Fac Gar Fac Was Fac Low Low Dat Pro Fac Was Fac Gar Fac Fac Was Fac Ext Cet Arc Hub Res Qua Res Tes Acc Com Ac0 Machines Disabled 89 | . 29 . . 8 2 9 11 1 . . 4 9 . . . 2 . . . 1 1 . . . . . . . . 2 . . . 5 . 3 . 2 . Max in Single Turn 5 | . 1 . . 5 1 2 3 1 . . 2 4 . . . 1 . . . 1 1 . . . . . . . . 1 . . . 1 . 1 . 2 . Garrison Access 4 | . . . . . . . . . . . . . . 2 . 2 . . . . . . . . . . . . . . . . . . . . . . . Garrison Relay 6 | . . . . . . 4 . . . . 2 . . . . . . . . . . . . . . . . . . . . . . . . . . . . Phase Generator 3 | . . . . . . 1 . . . . 1 . . . . . . . . . . . . . . . . . . . . . . . . . . 1 . Network Hub 1 | . . . . . . . . . . . . . . . . . . . . . . . . . . . . . . . . 1 . . . . . . . Machines Repaired . | . . . . . . . . . . . . . . . . . . . . . . . . . . . . . . . . . . . . . . . . Machines Dismantled . | . . . . . . . . . . . . . . . . . . . . . . . . . . . . . . . . . . . . . . . . Machines Sabotaged 1 | . . . . . . . . . . . . . . . . . . . . . . . . . . . . . . . . 1 . . . . . . . Overloaded Fab Kills . | . . . . . . . . . . . . . . . . . . . . . . . . . . . . . . . . . . . . . . . . Hacking | -11 -10 -10 -10 -9 -8 -8 -8 -7 -7 -7 -7 -7 -7 -6 -6 -6 -6 -6 -6 -5 -5 -5 -5 -5 -5 -4 -4 -4 -4 -4 -4 -4 -3 -3 -2 -2 -1 -1 -1 --------- Run | Yrd Mat Min Exi Min Mat Gar Mat Fac Was Fac Gar Fac Gar Fac Was Fac Low Low Dat Pro Fac Was Fac Gar Fac Fac Was Fac Ext Cet Arc Hub Res Qua Res Tes Acc Com Ac0 Machines Accessed 217 | . 8 . 5 2 11 3 9 10 . 16 1 26 1 30 . 23 1 . 4 . 12 . 9 1 4 2 . 5 16 3 . 5 3 . . . 4 2 1 Terminals 126 | . 5 . . 1 6 3 6 7 . 7 1 15 1 12 . 10 . . . . 6 . 5 1 4 1 . 4 16 3 . 5 2 . . . 3 2 . Fabricators 20 | . . . . . . . . . . 2 . 2 . 5 . 2 . . . . 3 . 2 . . 1 . 1 . . . . 1 . . . 1 . . Repair Stations 14 | . 1 . . . 1 . 1 . . 1 . 2 . 4 . 1 . . . . 2 . 1 . . . . . . . . . . . . . . . . Recycling Units 20 | . 2 . . . 2 . 1 1 . 2 . 4 . 3 . 4 . . . . 1 . . . . . . . . . . . . . . . . . . Scanalyzers 14 | . . . . . 1 . 1 1 . 3 . 1 . 3 . 4 . . . . . . . . . . . . . . . . . . . . . . . Garrison Access 11 | . . . . . 1 . . 1 . 1 . 2 . 3 . 2 . . . . . . 1 . . . . . . . . . . . . . . . . Total Hacks 647 | . 24 . 50 3 43 5 43 23 . 29 1 62 1 68 . 50 1 . 27 . 33 . 33 1 18 6 . 12 39 10 . 12 22 . . . 17 9 5 Successful 402 | . 19 . 50 2 24 3 29 14 . 19 1 41 . 43 . 26 1 . 27 . 24 . 22 1 4 1 . 6 14 7 . 5 8 . . . 4 2 5 Failed 245 | . 5 . . 1 19 2 14 9 . 10 . 21 1 25 . 24 . . . . 9 . 11 . 14 5 . 6 25 3 . 7 14 . . . 13 7 . Catastrophic 38 | . . . . . 1 . 2 1 . 1 . . 1 4 . 2 . . . . 1 . . . 4 1 . 1 5 . . 1 5 . . . 6 2 . Database Lockouts . | . . . . . . . . . . . . . . . . . . . . . . . . . . . . . . . . . . . . . . . . Manual 306 | . 20 . 1 . 24 . 32 15 . 16 . 38 . 33 . 34 . . . 2 18 . 17 . 9 5 . 10 . 1 . 12 13 . . . 6 . . Terminals 401 | . 21 . . 2 38 5 40 18 . 13 1 42 1 32 . 27 . . . . 17 . 17 1 18 2 . 11 39 10 . 12 14 . . . 11 9 . Fabricators 63 | . . . . . . . . . . 4 . 6 . 10 . 4 . . . . 8 . 12 . . 4 . 1 . . . . 8 . . . 6 . . Repair Stations 25 | . 1 . . . 1 . 1 . . 2 . 3 . 8 . 2 . . . . 4 . 3 . . . . . . . . . . . . . . . . Recycling Units 28 | . 2 . . . 2 . 1 1 . 2 . 6 . 4 . 6 . . . . 4 . . . . . . . . . . . . . . . . . . Scanalyzers 24 | . . . . . 1 . 1 1 . 6 . 1 . 7 . 7 . . . . . . . . . . . . . . . . . . . . . . . Garrison Access 22 | . . . . . 1 . . 3 . 2 . 4 . 7 . 4 . . . . . . 1 . . . . . . . . . . . . . . . . Terminal Hacks 182 | . 3 . 50 2 8 3 11 3 . 1 1 11 . 9 . 2 1 . 27 . 6 . 5 1 4 . . 1 14 7 . . 2 . . . 3 2 5 Record 68 | . . . 49 . . . . . . . . . . . . . . . 11 . . . 1 . . . . . . 7 . . . . . . . . . Part Schematic 10 | . . . . . . . . . . . . . . . . . . . 8 . . . 2 . . . . . . . . . . . . . . . . Robot Schematic 5 | . . . . . . . . . . . . . . . . . . . 5 . . . . . . . . . . . . . . . . . . . . Robot Analysis 3 | . 1 . . . 1 . 1 . . . . . . . . . . . . . . . . . . . . . . . . . . . . . . . . Prototype ID Bank 8 | . 1 . . . 1 . 1 . . . . . . 1 . 1 . . 3 . . . . . . . . . . . . . . . . . . . . Open Door 19 | . . . . 1 . . . . . . . . . . . . 1 . . . . . . . . . . . 14 . . . . . . . 3 . . Branch Access Points 1 | . . . . . . . . . . . . . . . . . . . . . . . . . 1 . . . . . . . . . . . . . . Emergency Access Points 3 | . . . . . . 1 . . . . 1 . . . . . . . . . . . . 1 . . . . . . . . . . . . . . . Machine Index 2 | . . . . . 1 . . . . . . 1 . . . . . . . . . . . . . . . . . . . . . . . . . . . Terminal Index 3 | . . . . . . . 1 . . . . 1 . 1 . . . . . . . . . . . . . . . . . . . . . . . . . Unreport Threat 3 | . . . . . . . . 1 . . . 1 . 1 . . . . . . . . . . . . . . . . . . . . . . . . . Locate Traps 11 | . 1 . . . . . 2 . . . . 4 . 1 . 1 . . . . 1 . 1 . . . . . . . . . . . . . . . . Recall Investigation 4 | . . . . . . . . . . . . . . 1 . . . . . . 2 . 1 . . . . . . . . . . . . . . . . Hauler Manifests 8 | . . . . . 1 . 1 1 . 1 . 1 . 1 . . . . . . 1 . . . . . . . . . . . 1 . . . . . . Registered Components 6 | . . . . . 1 . . 1 . . . 1 . 1 . . . . . . 1 . . . . . . 1 . . . . . . . . . . . Registered Prototypes 4 | . . . . . 1 . . . . . . 1 . 1 . . . . . . 1 . . . . . . . . . . . . . . . . . . Zone Layout 14 | . . . . 1 2 . 5 . . . . 1 . 1 . . . . . . . . . . 3 . . . . . . . 1 . . . . . . Patrol Navigation 1 | . . . . . . 1 . . . . . . . . . . . . . . . . . . . . . . . . . . . . . . . . . Security Stations 1 | . . . . . . 1 . . . . . . . . . . . . . . . . . . . . . . . . . . . . . . . . . Derelict Proto ID Bank 1 | . . . 1 . . . . . . . . . . . . . . . . . . . . . . . . . . . . . . . . . . . . Disengage Seal 2 | . . . . . . . . . . . . . . . . . . . . . . . . . . . . . . . . . . . . . . 2 . Gate Test 138-A 1 | . . . . . . . . . . . . . . . . . . . . . . . . . . . . . . . . . . . . . . . 1 Gate Test 138-B 1 | . . . . . . . . . . . . . . . . . . . . . . . . . . . . . . . . . . . . . . . 1 Gate Test 138-C 3 | . . . . . . . . . . . . . . . . . . . . . . . . . . . . . . . . . . . . . . . 3 Fabricator Hacks 22 | . . . . . . . . . . 2 . 2 . 4 . 2 . . . . 4 . 5 . . 1 . . . . . . 2 . . . . . . Load Schematic 13 | . . . . . . . . . . 1 . 1 . 3 . 1 . . . . 2 . 3 . . 1 . . . . . . 1 . . . . . . Build 9 | . . . . . . . . . . 1 . 1 . 1 . 1 . . . . 2 . 2 . . . . . . . . . 1 . . . . . . Repair Station Hacks 11 | . . . . . . . . . . 2 . 2 . 3 . . . . . . 2 . 2 . . . . . . . . . . . . . . . . Scan Component 6 | . . . . . . . . . . 1 . 1 . 2 . . . . . . 1 . 1 . . . . . . . . . . . . . . . . Repair 5 | . . . . . . . . . . 1 . 1 . 1 . . . . . . 1 . 1 . . . . . . . . . . . . . . . . Recycling Unit Hacks 2 | . . . . . . . . . . . . . . . . . . . . . 2 . . . . . . . . . . . . . . . . . . Process 1 | . . . . . . . . . . . . . . . . . . . . . 1 . . . . . . . . . . . . . . . . . . Retrieve Matter 1 | . . . . . . . . . . . . . . . . . . . . . 1 . . . . . . . . . . . . . . . . . . Scanalyzer 6 | . . . . . . . . . . 2 . . . 2 . 2 . . . . . . . . . . . . . . . . . . . . . . . Insert Component 4 | . . . . . . . . . . 1 . . . 1 . 2 . . . . . . . . . . . . . . . . . . . . . . . Analyze 2 | . . . . . . . . . . 1 . . . 1 . . . . . . . . . . . . . . . . . . . . . . . . . Garrison Access Hacks 19 | . . . . . 1 . . 2 . 2 . 3 . 6 . 4 . . . . . . 1 . . . . . . . . . . . . . . . . Unlock Access 4 | . . . . . 1 . . . . 1 . 1 . . . . . . . . . . 1 . . . . . . . . . . . . . . . . Seal Access 4 | . . . . . . . . . . . . . . 2 . 2 . . . . . . . . . . . . . . . . . . . . . . . Coupler Status 11 | . . . . . . . . 2 . 1 . 2 . 4 . 2 . . . . . . . . . . . . . . . . . . . . . . . Unauthorized Hacks 160 | . 16 . . . 15 . 18 9 . 10 . 23 . 19 . 16 . . . . 10 . 9 . . . . 5 . . . 5 4 . . . 1 . . Terminals 112 | . 13 . . . 11 . 15 6 . 6 . 15 . 11 . 7 . . . . 8 . 7 . . . . 5 . . . 5 3 . . . . . . Track 4 | . 2 . . . . . 2 . . . . . . . . . . . . . . . . . . . . . . . . . . . . . . . . Assimilate 11 | . . . . . 1 . . . . 1 . 3 . 2 . 2 . . . . 1 . . . . . . . . . . 1 . . . . . . . Botnet 22 | . 3 . . . 2 . 4 1 . . . 2 . 2 . . . . . . 2 . 2 . . . . 2 . . . . 2 . . . . . . Detonate 6 | . 1 . . . 2 . 2 . . . . 1 . . . . . . . . . . . . . . . . . . . . . . . . . . . Disrupt 4 | . 2 . . . 1 . 1 . . . . . . . . . . . . . . . . . . . . . . . . . . . . . . . . Operators 1 | . . . . . . . 1 . . . . . . . . . . . . . . . . . . . . . . . . . . . . . . . . Skim 60 | . 5 . . . 5 . 5 5 . 5 . 9 . 7 . 5 . . . . 5 . 5 . . . . 3 . . . . 1 . . . . . . Sabotage 4 | . . . . . . . . . . . . . . . . . . . . . . . . . . . . . . . . 4 . . . . . . . Fabricators 9 | . . . . . . . . . . 1 . 2 . . . 1 . . . . 1 . 2 . . . . . . . . . 1 . . . 1 . . Prioritize 5 | . . . . . . . . . . . . 1 . . . . . . . . 1 . 2 . . . . . . . . . 1 . . . . . . Haulers 4 | . . . . . . . . . . 1 . 1 . . . 1 . . . . . . . . . . . . . . . . . . . . 1 . . Repair Stations 7 | . 1 . . . 1 . 1 . . . . 1 . 1 . 1 . . . . 1 . . . . . . . . . . . . . . . . . . Mechanics 4 | . . . . . 1 . . . . . . . . 1 . 1 . . . . 1 . . . . . . . . . . . . . . . . . . Patch 3 | . 1 . . . . . 1 . . . . 1 . . . . . . . . . . . . . . . . . . . . . . . . . . . Recycling Units 16 | . 2 . . . 2 . 1 1 . 1 . 3 . 3 . 3 . . . . . . . . . . . . . . . . . . . . . . . Tunnel 16 | . 2 . . . 2 . 1 1 . 1 . 3 . 3 . 3 . . . . . . . . . . . . . . . . . . . . . . . Scanalyzers 13 | . . . . . 1 . 1 1 . 2 . 1 . 3 . 4 . . . . . . . . . . . . . . . . . . . . . . . Extract 13 | . . . . . 1 . 1 1 . 2 . 1 . 3 . 4 . . . . . . . . . . . . . . . . . . . . . . . Garrison Access 3 | . . . . . . . . 1 . . . 1 . 1 . . . . . . . . . . . . . . . . . . . . . . . . . Eject 3 | . . . . . . . . 1 . . . 1 . 1 . . . . . . . . . . . . . . . . . . . . . . . . . Data Cores Recovered 1 | . . . . . . . . . . . . . . . . . . . . . . . . . . . . . . . . . . . . . . 1 . Used . | . . . . . . . . . . . . . . . . . . . . . . . . . . . . . . . . . . . . . . . . Hacking Detections 135 | . 5 . . 1 7 3 6 7 . 11 . 14 1 21 . 16 . . . . 8 . 8 . 4 2 . 5 7 2 . 1 3 . . . 3 . . Full Trace Events 14 | . . . . . . . . . . 1 . 2 . 1 . 1 . . . . 3 . 2 . . 1 . . 1 . . 1 1 . . . . . . Feedback Events . | . . . . . . . . . . . . . . . . . . . . . . . . . . . . . . . . . . . . . . . . Feedback Blocked . | . . . . . . . . . . . . . . . . . . . . . . . . . . . . . . . . . . . . . . . . Robot Schematics Acquired 5 | . . . . . . . . . . . . . . . . . . . 5 . . . . . . . . . . . . . . . . . . . . Robots Built . | . . . . . . . . . . . . . . . . . . . . . . . . . . . . . . . . . . . . . . . . Authchips . | . . . . . . . . . . . . . . . . . . . . . . . . . . . . . . . . . . . . . . . . Time . | . . . . . . . . . . . . . . . . . . . . . . . . . . . . . . . . . . . . . . . . Total Robot Build Rating . | . . . . . . . . . . . . . . . . . . . . . . . . . . . . . . . . . . . . . . . . Part Schematics Acquired 59 | . . . . . 5 . 1 5 . 16 . 7 . 9 . 6 . . 8 . . . 2 . . . . . . . . . . . . . . . . Parts Built 12 | . . . . . . . . . . 2 . 2 . 1 . 1 . . . . 2 . 3 . . . . . . . . . 1 . . . . . . Authchips . | . . . . . . . . . . . . . . . . . . . . . . . . . . . . . . . . . . . . . . . . Time 690 | . . . . . . . . . . 117 . 36 . 134 . 134 . . . . 134 . 102 . . . . . . . . . 33 . . . . . . Total Part Build Rating 60 | . . . . . . . . . . 14 . 6 . 4 . 4 . . . . 11 . 17 . . . . . . . . . 4 . . . . . . Parts Repaired 5 | . . . . . . . . . . 1 . 1 . 1 . . . . . . 1 . 1 . . . . . . . . . . . . . . . . Time 259 | . . . . . . . . . . 43 . 53 . 88 . . . . . . 44 . 31 . . . . . . . . . . . . . . . . Parts Recycled . | . . . . . . . . . . . . . . . . . . . . . . . . . . . . . . . . . . . . . . . . Recycled Matter 41 | . . . . . . . . . . . . . . . . . . . . . 41 . . . . . . . . . . . . . . . . . . Retrieved Matter 41 | . . . . . . . . . . . . . . . . . . . . . 41 . . . . . . . . . . . . . . . . . . Retrieved Components . | . . . . . . . . . . . . . . . . . . . . . . . . . . . . . . . . . . . . . . . . Parts Scanalyzed 2 | . . . . . . . . . . 1 . . . 1 . . . . . . . . . . . . . . . . . . . . . . . . . Part Schematics Acquired 2 | . . . . . . . . . . 1 . . . 1 . . . . . . . . . . . . . . . . . . . . . . . . . Parts Damaged . | . . . . . . . . . . . . . . . . . . . . . . . . . . . . . . . . . . . . . . . . Bothacking | -11 -10 -10 -10 -9 -8 -8 -8 -7 -7 -7 -7 -7 -7 -6 -6 -6 -6 -6 -6 -5 -5 -5 -5 -5 -5 -4 -4 -4 -4 -4 -4 -4 -3 -3 -2 -2 -1 -1 -1 ------------ Run | Yrd Mat Min Exi Min Mat Gar Mat Fac Was Fac Gar Fac Gar Fac Was Fac Low Low Dat Pro Fac Was Fac Gar Fac Fac Was Fac Ext Cet Arc Hub Res Qua Res Tes Acc Com Ac0 Used RIF Installer 5 | . . . . . . 2 . . . . 1 . 2 . . . . . . . . . . . . . . . . . . . . . . . . . . Signal Jammer 1 | . . . . . . . . . . . . . 1 . . . . . . . . . . . . . . . . . . . . . . . . . . Watcher Feeds 1 | . . . . . . 1 . . . . . . . . . . . . . . . . . . . . . . . . . . . . . . . . . Autooverride 1 | . . . . . . . . . . . 1 . . . . . . . . . . . . . . . . . . . . . . . . . . . . Autoassimilate 1 | . . . . . . . . . . . . . 1 . . . . . . . . . . . . . . . . . . . . . . . . . . Robots Hacked 53 | . . . 12 . . . . 3 . 4 8 . 3 6 . . . . . . 1 . . 4 3 1 . . 1 . . 2 . 2 . 1 . . 2 Non-combat 18 | . . . 3 . . . . 3 . 4 . . . 3 . . . . . . 1 . . . 3 1 . . . . . . . . . . . . . Combat 33 | . . . 9 . . . . . . . 8 . 3 3 . . . . . . . . . 4 . . . . 1 . . 2 . 2 . 1 . . . Autooverrided 6 | . . . . . . . . . . . . . 1 . . . . . . . . . . . . . . . 1 . . 1 . 2 . 1 . . . Autoassimilated 3 | . . . . . . . . . . . . . . . . . . . . . . . . 2 . . . . . . . 1 . . . . . . . Robot Hacks Applied 52 | . . . 18 . . . . 3 . 5 8 . 3 7 . . . . . . 1 . . 2 4 1 . . . . . . . . . . . . . parse_system 21 | . . . 18 . . . . 1 . . . . 1 1 . . . . . . . . . . . . . . . . . . . . . . . . . start_evac 1 | . . . . . . . . . . . . . . . . . . . . . . . . . 1 . . . . . . . . . . . . . . find_chute 5 | . . . . . . . . 2 . . . . . 1 . . . . . . 1 . . . . 1 . . . . . . . . . . . . . deconstruct_machine 3 | . . . . . . . . . . 3 . . . . . . . . . . . . . . . . . . . . . . . . . . . . . map_walls 1 | . . . . . . . . . . . . . . . . . . . . . . . . . 1 . . . . . . . . . . . . . . find_fabricator 1 | . . . . . . . . . . . . . . 1 . . . . . . . . . . . . . . . . . . . . . . . . . recall_reinforcements 2 | . . . . . . . . . . 1 . . . 1 . . . . . . . . . . . . . . . . . . . . . . . . . block_reporting 2 | . . . . . . . . . . 1 . . . . . . . . . . . . . . 1 . . . . . . . . . . . . . . link_fov 1 | . . . . . . . . . . . . . . . . . . . . . . . . . 1 . . . . . . . . . . . . . . reboot_system 3 | . . . . . . . . . . . 1 . 1 1 . . . . . . . . . . . . . . . . . . . . . . . . . overwrite_iff 8 | . . . . . . . . . . . 3 . 1 2 . . . . . . . . . 2 . . . . . . . . . . . . . . . formatsys_high 4 | . . . . . . . . . . . 4 . . . . . . . . . . . . . . . . . . . . . . . . . . . . Manual 2 | . . . . . . . . . . . . . . . . . . . . . . . . . . . . . . . . . . . . . . . 2 Relay Couplers Released 32 | . . . . . . 14 . 4 . . 8 3 . 3 . . . . . . . . . . . . . . . . . . . . . . . . . Ejected 10 | . . . . . . . . 4 . . . 3 . 3 . . . . . . . . . . . . . . . . . . . . . . . . . Machine Destruction 22 | . . . . . . 14 . . . . 8 . . . . . . . . . . . . . . . . . . . . . . . . . . . . Attached 13 | . . . . . . . . 2 . . 6 1 1 1 . . . . . . . . . 1 1 . . . . . . . . . . . . . . Fabnet Peak Effective % . | . . . . . . . . . . . . . . . . . . . . . . . . . . . . . . . . . . . . . . . . Robots Rewired 9 | . . . . . . 3 . . . . . . . . . . . . . . 1 . . . . 1 . . 4 . . . . . . . . . . Allies Hacked 1 | . . . . . . . . . . 1 . . . . . . . . . . . . . . . . . . . . . . . . . . . . . Hacks Repelled . | . . . . . . . . . . . . . . . . . . . . . . . . . . . . . . . . . . . . . . . . Allies | -11 -10 -10 -10 -9 -8 -8 -8 -7 -7 -7 -7 -7 -7 -6 -6 -6 -6 -6 -6 -5 -5 -5 -5 -5 -5 -4 -4 -4 -4 -4 -4 -4 -3 -3 -2 -2 -1 -1 -1 -------- Run | Yrd Mat Min Exi Min Mat Gar Mat Fac Was Fac Gar Fac Gar Fac Was Fac Low Low Dat Pro Fac Was Fac Gar Fac Fac Was Fac Ext Cet Arc Hub Res Qua Res Tes Acc Com Ac0 Total Allies 77 | . . . . 2 1 3 . . 19 1 7 3 2 4 . 2 . . . . 2 . . 4 . 1 . . 19 1 . 3 . 2 . 1 . . . Largest Group 19 | . . . . 2 2 3 . . 19 2 4 1 2 2 . 1 . . . . 1 . . 2 . 1 . 1 12 7 . 3 . 2 . . . . . Highest-Rated Group 578 | . . . . 55 55 43 . . 475 53 76 26 24 55 . 26 . . . . 29 . . 58 . 49 . 49 578 358 . 104 . 94 . . . . . Highest-Rated Ally 159 | . . . . 31 31 18 . . 35 27 32 26 12 29 . 26 . . . . 29 . . 29 . 49 . 49 159 146 . 47 . 47 . . . . . Total Orders 19 | . . . . . . . . . . . . . . . . . . . . . 10 . . . . . . . . . . . 3 . 5 1 . . . EXPLORE 11 | . . . . . . . . . . . . . . . . . . . . . 5 . . . . . . . . . . . 2 . 3 1 . . . RETURN 8 | . . . . . . . . . . . . . . . . . . . . . 5 . . . . . . . . . . . 1 . 2 . . . . Ally Attacks 316 | . . . . . 9 5 . . 68 . 23 . 7 9 . . . . . . . . 2 3 . . . 3 165 13 . 4 . 5 . . . . . Total Damage 11160 | . . . . . 84 133 . . 4019 . 421 . 90 152 . . . . . . . . . 38 . . . 183 5377 350 . 140 . 173 . . . . . Kills 34 | . . . . . 1 1 . . 9 . 1 . 1 . . . . . . . . . . 1 . . . 1 19 . . . . . . . . . . Allies Corrupted 3 | . . . . . . 1 . . . . . . . . . . . . . . . . . 1 . . . 1 . . . . . . . . . . . Allies Melted . | . . . . . . . . . . . . . . . . . . . . . . . . . . . . . . . . . . . . . . . . Intel | -11 -10 -10 -10 -9 -8 -8 -8 -7 -7 -7 -7 -7 -7 -6 -6 -6 -6 -6 -6 -5 -5 -5 -5 -5 -5 -4 -4 -4 -4 -4 -4 -4 -3 -3 -2 -2 -1 -1 -1 ------- Run | Yrd Mat Min Exi Min Mat Gar Mat Fac Was Fac Gar Fac Gar Fac Was Fac Low Low Dat Pro Fac Was Fac Gar Fac Fac Was Fac Ext Cet Arc Hub Res Qua Res Tes Acc Com Ac0 Robot Analysis Total 148 | . 1 . . . 1 . 1 . . . . . . . . . . . 145 . . . . . . . . . . . . . . . . . . . . Derelict Logs Recovered 5 | . . . . 2 . . . . . . . . . . . . 1 1 . 1 . . . . . . . . . . . . . . . . . . . Drone Launches 14 | . . . . . . . . . . . . . . . . . . . . . 6 . 2 . . . . . . . . . 2 . 3 1 . . . Drone Recoveries 9 | . . . . . . . . . . . . . . . . . . . . . 6 . . . . . . . . . . . 1 . 2 . . . . Exploration | -11 -10 -10 -10 -9 -8 -8 -8 -7 -7 -7 -7 -7 -7 -6 -6 -6 -6 -6 -6 -5 -5 -5 -5 -5 -5 -4 -4 -4 -4 -4 -4 -4 -3 -3 -2 -2 -1 -1 -1 ------------- Run | Yrd Mat Min Exi Min Mat Gar Mat Fac Was Fac Gar Fac Gar Fac Was Fac Low Low Dat Pro Fac Was Fac Gar Fac Fac Was Fac Ext Cet Arc Hub Res Qua Res Tes Acc Com Ac0 Turns Passed 18528 | 155 3177 181 488 499 1206 1338 975 566 177 512 399 1161 149 853 30 675 280 228 96 171 733 20 750 64 395 182 11 216 740 97 8 168 380 148 125 153 263 667 92 Spaces Moved 29226 | 85 1109 58 431 425 1435 1330 1261 1270 376 1829 668 2885 306 2602 122 2533 772 704 116 649 1050 80 556 112 414 289 63 337 902 167 42 283 578 297 61 219 479 2074 257 Core 472 | 2 . . . . . . . . . . 1 . . . . . . . . . . . 71 112 13 78 . . . . . 20 111 . . . . . 64 Treads 945 | . 931 14 . . . . . . . . . . . . . . . . . . . . . . . . . . . . . . . . . . . . . Legs 1 | 1 . . . . . . . . . . . . . . . . . . . . . . . . . . . . . . . . . . . . . . . Wheels 1161 | 82 178 44 431 425 . . . . . . . . . . . . . . . . . . . . . . . . . . . . 1 . . . . . . Hover 210 | . . . . . . . . . . . . 203 . . . . . . . . . . . . . . . . . . . 7 . . . . . . . Flight 26437 | . . . . . 1435 1330 1261 1270 376 1829 667 2682 306 2602 122 2533 772 704 116 649 1050 80 485 . 401 211 63 337 902 167 42 256 466 297 61 219 479 2074 193 Fastest Speed 5 | 50 90 105 105 105 50 50 50 23 23 23 23 5 5 23 23 23 5 23 5 23 20 5 5 50 35 15 15 15 5 5 6 15 37 32 37 26 19 13 13 Average Speed 38 | 88 219 137 105 106 50 50 50 23 23 23 24 27 21 23 23 23 22 23 18 23 20 17 22 50 35 28 15 15 15 15 11 51 44 36 37 30 41 21 27 Slowest Speed 595 | 120 240 240 120 120 50 50 595 29 23 23 300 99 23 23 23 23 23 23 23 23 20 20 50 50 50 50 15 15 18 61 61 190 100 37 37 98 98 25 50 Overloaded Moves 539 | . . . . . . . . . . . . 14 23 . . . 5 . 28 . . 16 50 . . . . . 22 51 39 67 . 32 . . 5 108 79 Propulsion Burnouts 1 | . . . . . . . . . . . . . . . . . . . . . . . . . . . . . . 1 . . . . . . . . . Robots Hopped 219 | . . . . . 14 4 18 16 . 13 7 12 . 30 . 27 . . . . 9 . 5 . 2 . . . 9 1 . 11 7 6 7 1 3 15 2 Cave-ins Triggered . | . . . . . . . . . . . . . . . . . . . . . . . . . . . . . . . . . . . . . . . . Teleports 2 | . . . . . . . . . . . . . . . . . . . . . . . . . . . . . . . . . . 1 . . . 1 . Exploration Rate (%) 52 | 4 98 14 93 91 72 89 67 35 96 41 56 66 36 66 74 66 87 85 81 81 29 62 16 31 17 8 85 15 85 62 73 32 14 42 10 35 18 46 19 Regions Visited 39 Branch Regions 15 Pre-discovered Areas 50 | . 3 . 1 1 4 . 1 2 . 1 . 5 . 3 . 5 . 1 17 1 5 . . . . . . . . . . . . . . . . . . Known Exits Taken 23 | . 1 . . . 1 . 1 . . 1 . 1 . . . 1 1 1 1 1 . . 1 . 1 . . 1 1 1 1 1 1 1 1 1 1 1 . Unknown Exits Taken 4 | 1 . 1 1 1 . . . . . . . . . . . . . . . . . . . . . . . . . . . . . . . . . . . Scrap Searched 15 | . . . . 2 . . . . . . . . . . . . 6 2 . 5 . . . . . . . . . . . . . . . . . . . Spaces Dug 373 | . 23 . . . 40 . 23 7 . 14 9 78 12 23 . 30 1 . . 2 41 . 12 . 8 3 . 10 1 . . 2 9 5 . 3 4 12 1 Terrain Destroyed 1037 | . 64 . . 35 109 162 215 7 . 14 82 109 12 23 . 30 1 . . 2 41 . 12 . 8 3 . 10 1 . . 2 9 5 . 3 4 73 1 Melee 220 | . . . . . . . . 7 . 13 9 27 12 19 . 29 1 . . 2 31 . 12 . 8 3 . 10 1 . . 2 9 5 . 3 4 12 1 Projectile 113 | . 11 . . . 53 2 27 . . 1 . 4 . 4 . 1 . . . . 10 . . . . . . . . . . . . . . . . . . AOE 704 | . 53 . . 35 56 160 188 . . . 73 78 . . . . . . . . . . . . . . . . . . . . . . . . . 61 . Terrain Rammed . | . . . . . . . . . . . . . . . . . . . . . . . . . . . . . . . . . . . . . . . . Walls Destroyed . | . . . . . . . . . . . . . . . . . . . . . . . . . . . . . . . . . . . . . . . . Machines Disabled . | . . . . . . . . . . . . . . . . . . . . . . . . . . . . . . . . . . . . . . . . Actions | -11 -10 -10 -10 -9 -8 -8 -8 -7 -7 -7 -7 -7 -7 -6 -6 -6 -6 -6 -6 -5 -5 -5 -5 -5 -5 -4 -4 -4 -4 -4 -4 -4 -3 -3 -2 -2 -1 -1 -1 --------- Run | Yrd Mat Min Exi Min Mat Gar Mat Fac Was Fac Gar Fac Gar Fac Was Fac Low Low Dat Pro Fac Was Fac Gar Fac Fac Was Fac Ext Cet Arc Hub Res Qua Res Tes Acc Com Ac0 Total 34785 | 127 1531 134 458 463 1788 1832 1530 1491 466 1871 834 3144 353 2736 123 2549 864 769 156 659 1485 86 1143 119 646 358 63 481 1480 229 42 289 678 315 155 288 530 2245 275 Wait 4008 | 8 203 54 . 17 222 288 209 163 83 22 105 145 6 35 . . 83 66 17 . 349 5 546 1 211 23 . 127 552 60 . 5 61 . 97 58 28 150 9 Move 28781 | 84 1108 57 430 424 1412 1321 1226 1242 375 1804 653 2861 305 2543 121 2479 771 703 115 648 1032 79 547 111 409 289 62 336 883 164 41 263 564 287 48 216 472 2043 253 Hop 195 | . . . . . 9 4 16 12 . 12 7 11 . 29 . 26 . . . . 9 . 4 . 2 . . . 9 1 . 8 6 4 5 1 3 15 2 Pick Up 115 | 7 18 . 2 5 7 7 7 2 4 3 4 4 . 10 1 3 1 . . 2 7 . 1 . 1 3 . 1 . . . 2 5 5 . . . 3 . Fast Attach 71 | 7 2 . . . . . 3 6 . . 2 11 . 2 . 1 . . . . . . 3 . . 9 1 2 2 . . 3 7 1 . 3 4 2 . Attach 79 | . 1 . . . 5 2 3 8 . . 2 14 1 4 . . . . . . 6 . 3 3 5 2 . 1 . . . . 10 2 2 1 . 2 2 Detach 63 | . . . . . 3 . 2 5 . . 1 18 . 2 . . 1 . . . 2 . 6 2 3 3 . . . . . 1 8 . 1 2 . 2 1 Swap 201 | 2 41 8 2 3 14 23 6 7 1 2 10 13 3 15 . 3 2 . 3 1 24 1 . . 2 5 . . 5 . . . . 1 . . . 4 . Drop 123 | . 9 . 5 5 8 6 11 8 3 2 2 12 . 9 1 4 . . . 1 5 1 9 . . 4 . 1 2 . . 4 4 4 1 . 1 1 . Fire 516 | 19 149 15 . 9 74 88 47 9 . 11 23 6 8 17 . 1 . . . . 12 . . 2 5 3 . . 4 . . . . . . . . 8 6 Melee 425 | . . . 19 . 1 5 . 11 . 15 22 49 19 52 . 32 6 . 21 7 39 . 24 . 8 17 . 13 5 4 1 3 13 11 1 7 4 15 1 Ram 1 | . . . . . . . . . . . . . . . . . . . . . . . . . . . . . . . . . . . . . . . 1 Kick . | . . . . . . . . . . . . . . . . . . . . . . . . . . . . . . . . . . . . . . . . Crush . | . . . . . . . . . . . . . . . . . . . . . . . . . . . . . . . . . . . . . . . . Escape Stasis 168 | . . . . . . 85 . 18 . . . . 11 18 . . . . . . . . . . . . . . 18 . . . . . . . 18 . . Rewire 3 | . . . . . . . . . . . 3 . . . . . . . . . . . . . . . . . . . . . . . . . . . . Trap 36 | . . . . . 33 3 . . . . . . . . . . . . . . . . . . . . . . . . . . . . . . . . . Miscellaneous . | . . . . . . . . . . . . . . . . . . . . . . . . . . . . . . . . . . . . . . . . Route ------- -11/Scrapyard -10/Materials (discovered 6 exits: *Mat x3 / *Min x2 / Sub) -10/Mines (discovered 2 exits: *Exi / Sub) -10/Exiles (discovered 2 exits: *Min x2) -9/Mines -8/Materials (discovered 4 exits: *Fac x3 / Gar) -8/Garrison (discovered 3 exits: *Mat x3) -8/Materials (discovered 2 exits: *Fac x2) -7/Factory (discovered 4 exits: Fac x2 / *Low x2) -7/Waste -7/Factory (discovered 5 exits: *Fac x2 / *Low x2 / Gar) -7/Garrison -7/Factory (discovered 5 exits: *Fac x2 / *Low x2 / Gar) -7/Garrison -6/Factory (discovered 5 exits: *Fac x3 / *Low x2) -6/Waste -6/Factory (discovered 3 exits: *Fac x2 / *Low) -6/Lower Caves -6/Lower Caves (discovered 2 exits: *Fac / *Dat) -6/Data Miner -5/Proximity Caves -5/Factory -5/Waste -5/Factory (discovered 3 exits: Upp x2 / Gar) -5/Garrison -5/Factory (discovered 3 exits: *Fac / *Upp x2) -4/Factory (discovered 3 exits: Res / *Upp / Ext) -4/Waste -4/Factory -4/Extension (discovered 3 exits: *Res x2 / *Cet) -4/Cetus -4/Archives (discovered 3 exits: Res / *Hub x2) -4/Hub_04(d) (discovered 3 exits: *Res x3) -3/Research (discovered 3 exits: Res / Arm / *Qua) -3/Quarantine -2/Research -2/Testing -1/Access -1/Command -1/Access_0 History --------- Turn | Location | Event 4 | -11/Scrapyard | Discovered new exit (range 16) 156 | -11/Scrapyard | Entered Materials 311 | -10/Materials | Build established: Mutant 376 | -10/Materials | Discovered new exit (range 7) 483 | -10/Materials | Destroyed 7 combat bots 791 | -10/Materials | Discovered new exit (range 15) 1052 | -10/Materials | Discovered new exit (range 16) 1340 | -10/Materials | Discovered new exit (range 9) 1690 | -10/Materials | Loaded intel: 6 trap records 1715 | -10/Materials | Identified exit to Subcaves 1715 | -10/Materials | Identified exit to Materials 1715 | -10/Materials | Identified exit to Mines 1731 | -10/Materials | Learned Storage trap positions 1739 | -10/Materials | Learned location of Subcaves (-10) 1740 | -10/Materials | Learned location of 1 exit from Storage 1742 | -10/Materials | Learned location of 1 exit from Recycling 1752 | -10/Materials | Learned Storage trap positions 3333 | -10/Materials | Entered Mines 3497 | -10/Mines | Discovered exit to Subcaves (range 9) 3510 | -10/Mines | Deemed a non-threat by the Exiles lab entrance 3510 | -10/Mines | Discovered new exit (range 5) 3514 | -10/Mines | Entered Exiles 3528 | -10/Exiles | Discovered new exit (range 15) 3543 | -10/Exiles | Met 8R-AWN 3562 | -10/Exiles | Met EX-HEX 3631 | -10/Exiles | Met EX-DEC 3647 | -10/Exiles | Visited The Gauntlet 3793 | -10/Exiles | Learned location of Zion (-7) 3819 | -10/Exiles | Met EX-BIN 3844 | -10/Exiles | Aligned with FarCom system 3845 | -10/Exiles | Given EX-Vault access code 3888 | -10/Exiles | Opened EX-Vault 3897 | -10/Exiles | Found Flying Fortress v7 3918 | -10/Exiles | Warned to stay clear of 0b10 Research branches 3992 | -10/Exiles | Discovered new exit (range 10) 4002 | -10/Exiles | Left Exiles lab with Flying Fortress v7 4002 | -10/Exiles | Entered Mines 4053 | -9/Mines | Met a Derelict who couldn't figure out how to use a Trap Extractor 4063 | -9/Mines | Core integrity fell below 50% 4436 | -9/Mines | A weapon hastily lodged in a ceiling crevice suddenly fell to the ground 4475 | -9/Mines | Discovered new exit (range 5) 4501 | -9/Mines | Entered Materials 4501 | -8/Materials | Accompanied by 2 allies 4501 | -8/Materials | Evolved 4 slots: Propulsion x2, Utility x2 4506 | -8/Materials | Led the pair of lost Derelicts to an unsafe place 4622 | -8/Materials | Met 7R-MNS 4821 | -8/Materials | Discovered new exit (range 16) 4919 | -8/Materials | Discovered new exit (range 5) 5008 | -8/Materials | Build established: Hacker-Mutant 5146 | -8/Materials | Identified exit to Factory 5303 | -8/Materials | Learned location of 1 exit from Extension 5314 | -8/Materials | Learned 4 Recycling zone layouts 5404 | -8/Materials | Learned 8 Factory zone layouts 5429 | -8/Materials | Build established: Mutant 5707 | -8/Materials | Identified exit to Garrison 5707 | -8/Materials | Entered Garrison 5721 | -8/Garrison | Triggered checkpoint 5753 | -8/Garrison | Destroyed 7 combat bots 5759 | -8/Garrison | Triggered checkpoint 5922 | -8/Garrison | Triggered checkpoint 5944 | -8/Garrison | Discovered new exit (range 10) 6047 | -8/Garrison | Triggered checkpoint 6137 | -8/Garrison | Discovered new exit (range 5) 6155 | -8/Garrison | Learned Materials security intel 6234 | -8/Garrison | Triggered checkpoint 6333 | -8/Garrison | Discovered new exit (range 10) 6481 | -8/Garrison | Triggered checkpoint 6611 | -8/Garrison | Triggered checkpoint 6660 | -8/Garrison | Phase Generator disabled 6690 | -8/Garrison | Installed Relay Interface Framework 6704 | -8/Garrison | Garrison Relay disabled 6780 | -8/Garrison | Garrison Relay disabled 6935 | -8/Garrison | Expanded RIF knowledge: Watcher Feeds 6952 | -8/Garrison | Lost 3 allies 7007 | -8/Garrison | Garrison Relay disabled 7029 | -8/Garrison | Build established: Bothacker-Mutant 7045 | -8/Garrison | Entered Materials 7350 | -8/Materials | Discovered exit to Factory (range 13) 7445 | -8/Materials | First assault squad dispatched 7859 | -8/Materials | Discovered exit to Factory (range 21) 7908 | -8/Materials | Destroyed 8 combat bots 8020 | -8/Materials | Entered Factory 8020 | -7/Factory | Evolved 2 slots: Propulsion x1, Utility x1 8021 | -7/Factory | Identified exit to Lower Caves 8022 | -7/Factory | Identified exit to Factory 8302 | -7/Factory | Build established: Bothacker-Sprinter 8420 | -7/Factory | First assault squad dispatched 8482 | -7/Factory | Learned 4 Proximity Caves zone layouts 8539 | -7/Factory | Learned Factory security intel 8586 | -7/Factory | Manually triggered Chute Trap 8586 | -7/Factory | Sucked down chute 8586 | -7/Factory | Entered Waste 8594 | -7/Waste | Spotted C-40 Crusher 8609 | -7/Waste | Spotted C-40 Crusher 8625 | -7/Waste | Spotted C-40 Crusher 8632 | -7/Waste | Spotted C-40 Crusher 8632 | -7/Waste | Spotted C-40 Crusher 8633 | -7/Waste | Spotted C-40 Crusher 8679 | -7/Waste | Discovered new exit (range 13) 8683 | -7/Waste | Warlord forces began an assault 8733 | -7/Waste | Allies destroyed C-40 Crusher 8743 | -7/Waste | Allies destroyed C-40 Crusher 8749 | -7/Waste | Allies destroyed C-40 Crusher 8759 | -7/Waste | Allies destroyed C-40 Crusher 8763 | -7/Waste | Entered Factory 8763 | -7/Factory | Accompanied by 1 ally 8767 | -7/Factory | Discovered exit to Lower Caves (range 13) 8793 | -7/Factory | Lost 18 allies 8989 | -7/Factory | Discovered exit to Factory (range 5) 9008 | -7/Factory | Repaired Broken Lrn. Sensor Array? 9059 | -7/Factory | Fabricated Lrn. Sensor Array? 9102 | -7/Factory | Learned Hub_04(d) stockpile data 9135 | -7/Factory | Learned 2 Extension zone layouts 9160 | -7/Factory | Learned Extension stockpile data 9176 | -7/Factory | Loaded intel: 128 trap records 9183 | -7/Factory | Learned Hub_04(d) terminal intel 9231 | -7/Factory | Learned location of 2 exits from Archives 9264 | -7/Factory | Identified exit to Garrison 9275 | -7/Factory | Entered Garrison 9333 | -7/Garrison | Garrison Relay disabled 9357 | -7/Garrison | Triggered checkpoint 9395 | -7/Garrison | Triggered checkpoint 9419 | -7/Garrison | Triggered checkpoint 9433 | -7/Garrison | Triggered checkpoint 9457 | -7/Garrison | Phase Generator disabled 9465 | -7/Garrison | Garrison Relay disabled 9478 | -7/Garrison | Discovered new exit (range 3) 9629 | -7/Garrison | Triggered checkpoint 9640 | -7/Garrison | Expanded RIF knowledge: Autooverride 9674 | -7/Garrison | Entered Factory 9697 | -7/Factory | Lost 4 parts (3n1w) 9707 | -7/Factory | Discovered exit to Lower Caves (range 13) 10123 | -7/Factory | Fabricated Cesium-ion Thruster? 10171 | -7/Factory | Discovered exit to Factory (range 5) 10245 | -7/Factory | Repaired Broken Cesium-ion Thruster? 10460 | -7/Factory | Learned Extension stockpile data 10509 | -7/Factory | Learned location of 1 exit from Lower Caves 10547 | -7/Factory | Learned location of 1 exit from Lower Caves 10575 | -7/Factory | Learned location of 1 exit from Hub_04(d) 10623 | -7/Factory | Discovered exit to Factory (range 12) 10791 | -7/Factory | Build established: Bothacker-Scout 10804 | -7/Factory | Identified exit to Garrison 10835 | -7/Factory | Entered Garrison 10934 | -7/Garrison | Expanded RIF knowledge: Signal Jamming 10936 | -7/Garrison | Discovered exit to Factory (range 12) 10973 | -7/Garrison | Expanded RIF knowledge: Autoassimilate 10984 | -7/Garrison | Entered Factory 10984 | -6/Factory | Evolved 2 slots: Utility x2 10985 | -6/Factory | Identified exit to Lower Caves 11186 | -6/Factory | Learned Hub_04(d) stockpile data 11223 | -6/Factory | Discovered new exit (range 14) 11261 | -6/Factory | Learned location of 1 exit from Upper Caves 11272 | -6/Factory | Found Exp. Targeting Computer 11324 | -6/Factory | Learned location of 1 exit from Lower Caves 11324 | -6/Factory | Repaired Broken Cld. VTOL Module? 11374 | -6/Factory | Discovered new exit (range 12) 11378 | -6/Factory | Learned 4 Hub_04(d) zone layouts 11424 | -6/Factory | Learned 2 Hub_04(d) zone layouts 11438 | -6/Factory | Fabricated Cld. VTOL Module (x1) 11462 | -6/Factory | Identified exit to Factory 11837 | -6/Factory | Manually triggered Chute Trap 11837 | -6/Factory | Sucked down chute 11837 | -6/Factory | Entered Waste 11842 | -6/Waste | Spotted C-40 Crusher 11851 | -6/Waste | Spotted C-40 Crusher 11851 | -6/Waste | Spotted C-40 Crusher 11852 | -6/Waste | Spotted C-40 Crusher 11855 | -6/Waste | Spotted C-40 Crusher 11861 | -6/Waste | Discovered new exit (range 14) 11867 | -6/Waste | Identified exit to Factory 11867 | -6/Waste | Entered Factory 12011 | -6/Factory | Fabricated Cld. VTOL Module? 12027 | -6/Factory | Discovered exit to Lower Caves (range 12) 12077 | -6/Factory | Discovered exit to Factory (range 11) 12313 | -6/Factory | Discovered exit to Factory (range 15) 12363 | -6/Factory | Learned Extension trap positions 12403 | -6/Factory | Learned location of 1 exit from Hub_04(d) 12431 | -6/Factory | Learned location of Upper Caves (-5) 12447 | -6/Factory | Learned 4 Proximity Caves zone layouts 12455 | -6/Factory | Learned location of Warlord (-5) 12456 | -6/Factory | Learned location of 2 exits from Upper Caves 12460 | -6/Factory | Learned 4 Lower Caves zone layouts 12472 | -6/Factory | Learned location of 1 exit from Proximity Caves 12495 | -6/Factory | Learned location of 1 exit from Lower Caves 12542 | -6/Factory | Entered Lower Caves 12543 | -6/Lower Caves | Identified exit to Lower Caves 12822 | -6/Lower Caves | Entered another Lower Caves area 12823 | -6/Lower Caves | Identified exit to Data Miner 13050 | -6/Lower Caves | Entered Data Miner 13050 | -6/Data Miner | Discovered new exit (range 6) 13055 | -6/Data Miner | Met Data Miner 13059 | -6/Data Miner | Learned location of Section 7 (-2) 13059 | -6/Data Miner | Acquired the access code to Warlord's prototype stash 13063 | -6/Data Miner | Received God Mode back door access code from Data Miner 13069 | -6/Data Miner | Destroyed Data Miner 13072 | -6/Data Miner | Found Prototype Hackware 13072 | -6/Data Miner | Identified Deep Network Scanner 13073 | -6/Data Miner | Interfaced with the Data Conduit 13146 | -6/Data Miner | Identified exit to Proximity Caves 13146 | -6/Data Miner | Entered Proximity Caves 13242 | -5/Proximity Caves | Acquired the password to a Derelict Tinkerer's latest research 13317 | -5/Proximity Caves | Entered Factory 13317 | -5/Factory | Evolved 2 slots: Propulsion x1, Utility x1 13318 | -5/Factory | Identified exit to Upper Caves 13319 | -5/Factory | Loaded intel: 270 machine locations 13563 | -5/Factory | Fabricated Combat Drone Bay? 13737 | -5/Factory | Repaired Broken Cld. VTOL Module 13778 | -5/Factory | Learned Testing trap positions 13886 | -5/Factory | Learned Quarantine security intel 13900 | -5/Factory | Learned Research emergency access door positions 13922 | -5/Factory | Learned location of 1 exit from Armory 13949 | -5/Factory | Fabricated Lgt. Regenerative Plating? 13991 | -5/Factory | Learned location of Proximity Caves (-4) 14042 | -5/Factory | Intercept squad dispatched 14050 | -5/Factory | Manually triggered Chute Trap 14050 | -5/Factory | Sucked down chute 14050 | -5/Factory | Entered Waste 14056 | -5/Waste | Spotted C-40 Crusher 14057 | -5/Waste | Spotted C-40 Crusher 14057 | -5/Waste | Spotted C-40 Crusher 14065 | -5/Waste | EMP discharged 14066 | -5/Waste | Discovered new exit (range 10) 14066 | -5/Waste | Spotted C-40 Crusher 14066 | -5/Waste | Spotted C-40 Crusher 14070 | -5/Waste | Identified exit to Factory 14070 | -5/Waste | Entered Factory 14071 | -5/Factory | Loaded intel: 268 machine locations 14151 | -5/Factory | Fabricated Lgt. Regenerative Plating? 14168 | -5/Factory | Repaired Lrn. Terrain Scanner 14242 | -5/Factory | Fabricated Adv. System Restoration Module? 14323 | -5/Factory | Learned Testing scanalyzer intel 14461 | -5/Factory | Learned Research non-interactive machine intel 14514 | -5/Factory | Learned Extension garrison access intel 14556 | -5/Factory | Learned Quarantine security intel 14589 | -5/Factory | Learned Extension trap positions 14613 | -5/Factory | Learned location of 2 exits from Research 14618 | -5/Factory | Build established: Hacker-Scout 14647 | -5/Factory | Learned 4 Research zone layouts 14751 | -5/Factory | Intercept squad dispatched 14757 | -5/Factory | Spotted Tracker 14772 | -5/Factory | System corruption reached 10% 14805 | -5/Factory | Core integrity fell below 50% 14805 | -5/Factory | Spotted Combat Programmer 14820 | -5/Factory | Identified exit to Garrison 14820 | -5/Factory | Entered Garrison 14821 | -5/Garrison | Loaded intel: 28 machine locations 14835 | -5/Garrison | Core integrity fell below 20% 14840 | -5/Garrison | Spotted B-75 Beast 14844 | -5/Garrison | Triggered checkpoint 14844 | -5/Garrison | Triggered checkpoint 14852 | -5/Garrison | Triggered checkpoint 14860 | -5/Garrison | Lost 8 parts (6n2u) 14879 | -5/Garrison | Discovered new exit (range 10) 14883 | -5/Garrison | Identified exit to Factory 14884 | -5/Garrison | Entered Factory 14885 | -5/Factory | Loaded intel: 285 machine locations 14888 | -5/Factory | Lost 4 allies 15058 | -5/Factory | Build established: Mutant 15275 | -5/Factory | Discovered new exit (range 13) 15278 | -5/Factory | Identified exit to Factory 15279 | -5/Factory | Entered another Factory area 15279 | -4/Factory | Evolved 2 slots: Utility x2 15280 | -4/Factory | Identified exit to Research 15280 | -4/Factory | Identified exit to Extension 15281 | -4/Factory | Loaded intel: 299 machine locations 15449 | -4/Factory | Discovered new exit (range 22) 15454 | -4/Factory | Identified exit to Upper Caves 15461 | -4/Factory | Manually triggered Chute Trap 15461 | -4/Factory | Sucked down chute 15461 | -4/Factory | Entered Waste 15466 | -4/Waste | Spotted C-40 Crusher 15467 | -4/Waste | Spotted C-40 Crusher 15467 | -4/Waste | Spotted C-40 Crusher 15468 | -4/Waste | Spotted C-40 Crusher 15468 | -4/Waste | Spotted C-40 Crusher 15470 | -4/Waste | Discovered new exit (range 16) 15470 | -4/Waste | Spotted C-40 Crusher 15472 | -4/Waste | Identified exit to Factory 15472 | -4/Waste | Entered Factory 15473 | -4/Factory | Loaded intel: 259 machine locations 15477 | -4/Factory | 1 allies followed down the chute 15596 | -4/Factory | Discovered exit to Extension (range 12) 15688 | -4/Factory | Entered Extension 15691 | -4/Extension | Loaded intel: 36 trap records 15692 | -4/Extension | Loaded intel: 44 machine locations 15715 | -4/Extension | Spotted B-86 Titan 15717 | -4/Extension | Spotted B-86 Titan 15724 | -4/Extension | Rescued a captive Derelict 15725 | -4/Extension | Rescued a captive Derelict 15726 | -4/Extension | Rescued a captive Derelict 15726 | -4/Extension | Rescued a captive Derelict 15726 | -4/Extension | Rescued a captive Derelict 15727 | -4/Extension | Rescued a captive Derelict 15732 | -4/Extension | Rescued a captive Derelict 15746 | -4/Extension | Rescued a captive Derelict 15750 | -4/Extension | Rescued a captive Derelict 15751 | -4/Extension | Rescued a captive Derelict 15752 | -4/Extension | Rescued a captive Derelict 15753 | -4/Extension | Rescued a captive Derelict 15772 | -4/Extension | Rescued A7 16075 | -4/Extension | Allies destroyed B-86 Titan 16107 | -4/Extension | Allies destroyed B-86 Titan 16116 | -4/Extension | Rescued a captive Derelict 16131 | -4/Extension | Lost 4 allies 16137 | -4/Extension | Rescued a captive Derelict 16139 | -4/Extension | Rescued a captive Derelict 16217 | -4/Extension | Rescued a captive Derelict 16220 | -4/Extension | Rescued a captive Derelict 16223 | -4/Extension | Rescued a captive Derelict 16223 | -4/Extension | Rescued a captive Derelict 16226 | -4/Extension | Rescued a captive Derelict 16230 | -4/Extension | Rescued a captive Derelict 16232 | -4/Extension | Discovered exit to Research (range 10) 16233 | -4/Extension | Discovered new exit (range 6) 16236 | -4/Extension | Rescued a captive Derelict 16238 | -4/Extension | Identified exit to Cetus 16390 | -4/Extension | Build established: Scout 16428 | -4/Extension | Entered Cetus 16428 | -4/Cetus | Accompanied by 7 allies (A7) 16429 | -4/Cetus | Loaded intel: 24 machine locations 16432 | -4/Cetus | Spotted Cetus Guard 16432 | -4/Cetus | Spotted Cetus Guard 16433 | -4/Cetus | Acquired a Cetus Manufacturing Module code from A7 16448 | -4/Cetus | Spotted Cetus Guard 16449 | -4/Cetus | Spotted Cetus Guard 16456 | -4/Cetus | Extracted ID and sensor layout for unrecognized location from A7's data core 16474 | -4/Cetus | Found a strange terminal 16475 | -4/Cetus | Started Cetus Manufacturing Module 16489 | -4/Cetus | Lost 6 allies 16500 | -4/Cetus | Manufactured an Enhanced Grunt 16503 | -4/Cetus | Cetus Manufacturing Module disabled 16522 | -4/Cetus | Discovered new exit (range 16) 16525 | -4/Cetus | Identified exit to Archives 16525 | -4/Cetus | Entered Archives 16526 | -4/Archives | Identified exit to Hub_04(d) 16527 | -4/Archives | Loaded intel: 8 machine locations 16532 | -4/Archives | Discovered exit to Hub_04(d) (range 16) 16533 | -4/Archives | Entered Hub_04(d) 16536 | -4/Hub_04(d) | Loaded intel: 122 machine locations 16537 | -4/Hub_04(d) | Loaded intel: 12 terminal locations 16613 | -4/Hub_04(d) | Discovered exit to Research (range 6) 16635 | -4/Hub_04(d) | Network Hub disabled 16667 | -4/Hub_04(d) | Spotted Lightning 16669 | -4/Hub_04(d) | Lost 3 allies 16671 | -4/Hub_04(d) | Spotted Lightning 16671 | -4/Hub_04(d) | Spotted Lightning 16701 | -4/Hub_04(d) | Entered Research 16701 | -3/Research | Evolved 2 slots: Utility x2 16702 | -3/Research | Identified exit to Armory 16703 | -3/Research | Identified exit to Research 16703 | -3/Research | Identified exit to Quarantine 16706 | -3/Research | Loaded intel: 129 machine locations 16707 | -3/Research | Loaded intel: 85 non-interactive machine locations 16724 | -3/Research | Lost 6 parts (5n1w) 16918 | -3/Research | Fabricated Cld. VTOL Module (x1) 17021 | -3/Research | Build established: Hacker-Scout 17081 | -3/Research | Entered Quarantine 17082 | -3/Quarantine | Maximum security lockdown engaged 17082 | -3/Quarantine | Loaded intel: 80 machine locations 17089 | -3/Quarantine | Found Alien Artifact 17099 | -3/Quarantine | Found Alien Artifact 17135 | -3/Quarantine | Found Alien Slashing Weapon 17150 | -3/Quarantine | Found Alien Artifact 17151 | -3/Quarantine | Identified Hpw. Transdimensional Reconstructor 17151 | -3/Quarantine | Warped through subspace 17187 | -3/Quarantine | Identified Subatomic Replicator 17187 | -3/Quarantine | Used Subatomic Replicator to create Alien Artifact 17226 | -3/Quarantine | Discovered exit to Research (range 5) 17229 | -3/Quarantine | Entered Research 17229 | -2/Research | Evolved 2 slots: Utility x2 17230 | -2/Research | Identified exit to Testing 17231 | -2/Research | Loaded intel: 101 machine locations 17231 | -2/Research | Identified Sigix Broadsword 17354 | -2/Research | Entered Testing 17355 | -2/Testing | Maximum security lockdown engaged 17355 | -2/Testing | Loaded intel: 28 trap records 17356 | -2/Testing | Loaded intel: 62 machine locations 17357 | -2/Testing | Loaded intel: 3 scanalyzer locations 17506 | -2/Testing | Discovered new exit (range 4) 17506 | -2/Testing | Identified exit to Access 17507 | -2/Testing | Entered Access 17507 | -1/Access | Evolved 2 slots: Propulsion x2 17508 | -1/Access | Loaded intel: 114 machine locations 17769 | -1/Access | Discovered new exit (range 8) 17770 | -1/Access | Identified exit to Command 17770 | -1/Access | Entered Command 17771 | -1/Command | Loaded intel: 58 machine locations 18023 | -1/Command | Phase Generator disabled 18049 | -1/Command | Disengaged cave seal 18065 | -1/Command | Disengaged cave seal 18145 | -1/Command | P-80 Master assimilated allied YR-A3I(b) 18410 | -1/Command | Identified Supercharged TR 18410 | -1/Command | Warped through subspace to slip node 18410 | -1/Command | Discovered new exit (range 3) 18411 | -1/Command | Identified exit to Access_0 18437 | -1/Command | Entered Access_0 18438 | -1/Access_0 | Loaded intel: 50 machine locations 18438 | -1/Access_0 | Met Architect 18445 | -1/Access_0 | Spotted Enhanced Programmer 18468 | -1/Access_0 | A6 warped into view 18471 | -1/Access_0 | Spotted Enhanced Programmer 18475 | -1/Access_0 | Destroyed A2 with code downloaded from Data Conduit 18478 | -1/Access_0 | Spotted Enhanced Programmer 18481 | -1/Access_0 | Destroyed A6 with code downloaded from Data Conduit 18490 | -1/Access_0 | Spotted Enhanced Programmer 18494 | -1/Access_0 | Started Test 138-B, establishing a local singularity 18495 | -1/Access_0 | Singularity Gate disabled 18498 | -1/Access_0 | Spotted Enhanced Programmer 18502 | -1/Access_0 | Spotted Enhanced Programmer 18505 | -1/Access_0 | Core integrity fell below 50% 18524 | -1/Access_0 | Core integrity fell below 20% 18528 | -1/Access_0 | System corruption reached 10% 18529 | -1/Access_0 | Destroyed by Enhanced Programmer with Enhanced Gamma Rifle Last Messages --------------- 18498_ Slammed into Enhanced Programmer. 18498_ Enhanced Programmer knocked back. 18498_ Imp. System Shield destroyed. 18499_ Cld. Field Propulsion Drive destroyed. 18499_ Exp. Q-thruster destroyed. 18500_ Quantum Shear penetrates Wall. 18500_ Cld. Field Propulsion Drive destroyed. 18502_ Machine disabled. 18503_ Imp. Hacking Suite destroyed. 18503_ Impulse Thruster Array destroyed. 18503_ Adv. System Shield destroyed. 18504_ Quantum Shear penetrates Wall. 18506_ Lrn. Terrain Scanner destroyed. 18507_ Penetrated by Quantum Shear. 18507_ Knocked back. 18509_ Penetrated by Quantum Shear. 18520_ Quantum Shear penetrates Wall. 18527_ Imp. System Guard severed. 18527_ Penetrated by Quantum Shear. 18529_ Penetrated by HV Slug. Map ----- +----------------------------------------------------+ | ?????????????????????????????????????????????????? | | ?????????????????????????????????????????????????? | | ?????????????????????????????????????????????????? | | ?????????????????????????????????????????????????? | | ? ???????????????????????????????????????????????? | | ??#??????????????????????? ??????????????????????? | | ?????????????????????????????????????????????????? | | ?#?#???????????????#?????????????????????????????? | | ???????????#?????#???????#?????????????????????#?? | | ???#?#? ??#?????????????????????????????? ???????? | | ??#??????????????????#??###?#?????????????#??????? | | #########?#?###??##????# #????????#?#??????#????? | | #???????#?##?## #?????????????#????#???# | | == [[ ############## #?#??????#??#?????????#?? | | == [[ ## #?????##???????#??##??### | | ## #?#####??#???## ??????? ## | | !! // ## "###### p #######?????????????#??? | | !! // ## ##??#?## #??????#"? "#??? ?? | | ##?#???## #??????? ""????? ? | | #?#??#??##; #????????""? ?????? | | ######??#?????# #????#?#"??"???###? | | #### "##????#?????#??# ##????#???????#???## | | #?## ##?????##??#?#??# ##???#??#?#??#??#??### | | ??## ##?????#?#?#??#### ;;#???????##?????#?#?## | | #?## ################### ;##????????#####?????## | | #?## ################ #;@ ##??#??#?#######???### | | #### h %###?????#### ###?##### | | ""## ############## p g %###???##### ######## | | ################ g ###??###### ######## | | ##??##??????#### ########## ### ## | | #### ###???#???????## ###?#### #### | | #### ??????#?### ###?#### ### | | ########## #???????#### g######## ### ## | | #?######## ???#?????#### ###### ## ## ### | | #?????##???? ? ??????#### ## #### ### | | ???????#???#?? ?###??### ### ## ###### ## | | ??#??#?????#?# ?#????### ### #"####### ###### ? | | ?#??#?????#?#?????????### ### ##?### ###### ? | | ###?##??#?##??????#?#?########### ##?#### ####? ? | | ?#??#????#####?????##??########## ##??### ##?? ?? | | ???#???????????????????#?####? ?? ??? ##???? | | ##??????#?#?????????? ?? ????#?? ??? ?? ?? | | ??#???#????##?? ????? ????##?? ??####? ? ??? | | #???????#????? ? ???? ?? ???? ??####?## ???# | | ?#??#?#???#?#???? ??????????????#??#??### ###??? | | ????????####???????? ?????????????????### ##???? | | ?????????????????? ????????#????????#???## #??# | | ??#???#???????#??????????????????????#??### ?????? | | ?????????#???#?????????????#??? ???? ?? ? ??? | | ?????? ????????? ???????????? ??? ??????????????? | +----------------------------------------------------+ Best States ------------- Heat Dissipation 52 Energy Generation 35 Energy Capacity 350 Matter Stores 300 Matter Capacity 300 Sight Range 16 Robot Scan Range 18 Terrain Scan Range 24 Terrain Scan Density 210 Corruption Containment 12 Armor Coverage 225 Resistance: KI 20 Propulsion Shielding 33 Evasion (%) 69 Melee Accuracy 8 Core Analysis 6 Recoil Reduction 2 Offensive Hacking 25 Defensive Hacking 46 Relay Coupler Types 3 Relay Coupler Value 64 Trap Extractor Capacity 6 Item Schematics ----------------- Hrd. Medium Armor Plating | -8/Materials | Extracted Lgt. Deuterium Engine | -8/Materials | Extracted VSS Leg | -8/Materials | Extracted Arm. Treads | -8/Materials | Extracted Sml. Matter Pod | -8/Materials | Extracted System Shield | -8/Materials | Extracted Prc. Grenade Launcher | -7/Factory | Extracted Hardlight Generator | -7/Factory | Extracted Imp. Deuterium Engine | -7/Factory | Extracted Adv. ECM Suite | -7/Factory | Extracted Cesium-ion Thruster | -7/Factory | Extracted Lrn. Sensor Array | -7/Factory | Scanalyzed Gauss Cannon | -7/Factory | Extracted Datajack | -7/Factory | Extracted Gatling Laser | -7/Factory | Extracted Imp. Targeting Computer | -7/Factory | Extracted Imp. Utility Shielding | -7/Factory | Extracted Minigun | -7/Factory | Extracted Lightning Gun | -7/Factory | Extracted Disposable Heat Sink | -7/Factory | Extracted Adv. Terrain Scan Processor | -7/Factory | Extracted Imp. Field Recycling Unit | -7/Factory | Extracted Hcp. Battery | -7/Factory | Extracted Actuator Array | -7/Factory | Extracted Titanium Leg | -7/Factory | Extracted Adv. Visual Processing Unit | -7/Factory | Extracted Hrd. Light Armor Plating | -7/Factory | Extracted Hpw. Shotgun | -7/Factory | Extracted Hacking Suite | -7/Factory | Extracted Terrain Scan Processor | -7/Factory | Extracted VTOL Module | -7/Factory | Extracted Pulse Rifle | -7/Factory | Extracted Hpw. Tractor Beam | -7/Factory | Extracted Hvy. Flail | -7/Factory | Extracted Cld. VTOL Module | -6/Factory | Scanalyzed Power Amplifier | -6/Factory | Extracted Recoil Stabilizer | -6/Factory | Extracted Hvy. Laser | -6/Factory | Extracted Carbon-fiber Leg | -6/Factory | Extracted Microactuators | -6/Factory | Extracted Gauss Rifle | -6/Factory | Extracted Power Sword | -6/Factory | Extracted Force Field | -6/Factory | Extracted Imp. Core Shielding | -6/Factory | Extracted ECM Suite | -6/Factory | Extracted Shock Rifle | -6/Factory | Extracted Adv. Heat Sink | -6/Factory | Extracted Imp. Carbon-fiber Leg | -6/Factory | Extracted Nuclear Pulse Thruster | -6/Factory | Extracted Combat Drone Bay | -6/Data Miner | Free Lgt. Regenerative Plating | -6/Data Miner | Free Enh. Armored Leg | -6/Data Miner | Free Prc. Energy Filter | -6/Data Miner | Free Cld. Plasma Rifle | -6/Data Miner | Free Myomer Leg | -6/Data Miner | Free Quantum Capacitor | -6/Data Miner | Free Hvy. Disruptor Cannon | -6/Data Miner | Free Imp. Plasma Cutter | -5/Factory | Hacked Adv. System Restoration Module | -5/Factory | Hacked Robot Schematics ------------------ Y-64 Sentinel | -6/Data Miner | Free R-10 Processor | -6/Data Miner | Free L-41 Fighter | -6/Data Miner | Free Y-54 Guardian | -6/Data Miner | Free A-27 Freighter | -6/Data Miner | Free Fabricated ------------ Lrn. Sensor Array | x2 | -7/Factory Cesium-ion Thruster | x2 | -7/Factory Cld. VTOL Module | x1 | -6/Factory Cld. VTOL Module | x1 | -6/Factory Combat Drone Bay | x1 | -5/Factory Lgt. Regenerative Plating | x1 | -5/Factory Lgt. Regenerative Plating | x1 | -5/Factory Adv. System Restoration Module | x2 | -5/Factory Cld. VTOL Module | x1 | -3/Research Alien Tech Used ----------------- High-powered Transdimensional Reconstructor Subatomic Replicator Sigix Broadsword Supercharged TR Achievements -------------- Behind The Curtain No Signal Supersonic Total Silence Whoosh! Challenges ------------ None Game ------ Seed CargoFlightRigger Manual? 0 Play Time 13:46:22 Cumulative 64.2 hours Start 2024.08.20 @ 23:30:37 End 2024.08.24 @ 01:05:11 Sessions 11 Manual Loads 0 Difficulty Rogue Special Mode None Game No. 9 Rogue 9 Adventurer 0 Explorer 0 Win Type - Total 2 Types 1/0/1/0/0/0/0/0/0 Lore% 28 Gallery% 34 Achievement% 49 Wizard Run 0 Options --------- Layout 0 ASCII 0 Keyboard 1 Movement Arrows Keybinds 0 Fullscreen 1 Font 12/Smallcaps Map View 83x54 Zoom Use 0% Tactical HUD 1 Map Filters NONE Filters NONE Steam 0 RUN: 336aab33-493b-456e-8f7b-f0ca9b7f2587